BODY,BODY NAME,DATE,TRANSACTION NUMBER, AMOUNT ,SUPPLIER NAME,SUPPLIER ID,EXPENSE AREA,EXPENSE TYPE,EXPENSE CODE
http://statistics.data.gov.uk/id/local-authority/12UE,Huntingdonshire District Council,02/02/2012,98059,51.05,D.A. Rosalia Hotel,CR001861,Accommodation For Homeless,Bed & Breakfast Payment,818
http://statistics.data.gov.uk/id/local-authority/12UE,Huntingdonshire District Council,23/02/2012,99293,1566.00,Elephant & Castle Freehouse & Motel,CR401969,Accommodation For Homeless,Bed & Breakfast Payment,818
http://statistics.data.gov.uk/id/local-authority/12UE,Huntingdonshire District Council,02/02/2012,98060,1836.00,Elephant & Castle Freehouse & Motel,CR401969,Accommodation For Homeless,Bed & Breakfast Payment,818
http://statistics.data.gov.uk/id/local-authority/12UE,Huntingdonshire District Council,09/02/2012,98427,2106.00,Elephant & Castle Freehouse & Motel,CR401969,Accommodation For Homeless,Bed & Breakfast Payment,818
http://statistics.data.gov.uk/id/local-authority/12UE,Huntingdonshire District Council,16/02/2012,98939,1890.00,Elephant & Castle Freehouse & Motel,CR401969,Accommodation For Homeless,Bed & Breakfast Payment,818
http://statistics.data.gov.uk/id/local-authority/12UE,Huntingdonshire District Council,16/02/2012,97657,99.37,Vodafone Limited,CR029120,Animal Welfare,Mobile Telephones & Radios,241
http://statistics.data.gov.uk/id/local-authority/12UE,Huntingdonshire District Council,23/02/2012,99197,856.54,Opus International Consultants,CR479831,Building Control Applications,Consultants,711
http://statistics.data.gov.uk/id/local-authority/12UE,Huntingdonshire District Council,16/02/2012,98822,976.00,Anglia Co-Operative Funerals,CR401059,Burials Under Health Acts,Other Services,799
http://statistics.data.gov.uk/id/local-authority/12UE,Huntingdonshire District Council,09/02/2012,97058,606.00,G Ferrara Ltd,CR478949,Bus Shelters,Sitework,359
http://statistics.data.gov.uk/id/local-authority/12UE,Huntingdonshire District Council,09/02/2012,97059,606.00,G Ferrara Ltd,CR478949,Bus Shelters,Sitework,359
http://statistics.data.gov.uk/id/local-authority/12UE,Huntingdonshire District Council,09/02/2012,97060,30.00,G Ferrara Ltd,CR478949,Bus Shelters,Sitework,359
http://statistics.data.gov.uk/id/local-authority/12UE,Huntingdonshire District Council,23/02/2012,99210,1390.08,Primesight  Ltd,CR132710,Bus Shelters,Sitework,359
http://statistics.data.gov.uk/id/local-authority/12UE,Huntingdonshire District Council,02/02/2012,97111,100.00,Dms Home Improvements & Electrical,CR479202,Bus Station & Shelters General,Gen Building Mtce - Responsive,303
http://statistics.data.gov.uk/id/local-authority/12UE,Huntingdonshire District Council,09/02/2012,97136,1014.00,Beebys Limited,CR415822,Bus Stations,Building Cleaning Internal,440
http://statistics.data.gov.uk/id/local-authority/12UE,Huntingdonshire District Council,09/02/2012,97136,24.00,Beebys Limited,CR415822,Bus Stations,Window Cleaning,442
http://statistics.data.gov.uk/id/local-authority/12UE,Huntingdonshire District Council,23/02/2012,97307,23100.00,J Breheny Contractors Ltd,CR000314,Bus Stations,Sitework,359
http://statistics.data.gov.uk/id/local-authority/12UE,Huntingdonshire District Council,23/02/2012,99199,435.60,Shopsafe Ltd,CR411150,Bus Stations,Rent,410
http://statistics.data.gov.uk/id/local-authority/12UE,Huntingdonshire District Council,16/02/2012,99000,186.39,Dms Home Improvements & Electrical,CR479202,Bus Stations Capital,Gen Building Mtce - Responsive,303
http://statistics.data.gov.uk/id/local-authority/12UE,Huntingdonshire District Council,02/02/2012,97311,1223.26,Adapt Ltd,CR453812,Business & Enterprise Support,Training - Professional,130
http://statistics.data.gov.uk/id/local-authority/12UE,Huntingdonshire District Council,02/02/2012,98057,1342.97,Cambridgeshire County Council,CR017440,Business & Enterprise Support,Advertising/Promoting Services,255
http://statistics.data.gov.uk/id/local-authority/12UE,Huntingdonshire District Council,16/02/2012,97541,100.00,Glows Training & Development,CR481031,Business & Enterprise Support,Instructors/Tutors,720
http://statistics.data.gov.uk/id/local-authority/12UE,Huntingdonshire District Council,16/02/2012,97542,100.00,Glows Training & Development,CR481031,Business & Enterprise Support,Instructors/Tutors,720
http://statistics.data.gov.uk/id/local-authority/12UE,Huntingdonshire District Council,23/02/2012,99483,6.39,Hartford Village Stores,CR413421,Business & Enterprise Support,Books & Publications,250
http://statistics.data.gov.uk/id/local-authority/12UE,Huntingdonshire District Council,09/02/2012,97062,12.84,Hartford Village Stores,CR413421,Business & Enterprise Support,Books & Publications,250
http://statistics.data.gov.uk/id/local-authority/12UE,Huntingdonshire District Council,09/02/2012,97063,98.12,Hartford Village Stores,CR413421,Business & Enterprise Support,Books & Publications,250
http://statistics.data.gov.uk/id/local-authority/12UE,Huntingdonshire District Council,09/02/2012,97520,1065.60,Pippas Blinds,CR453848,Business & Enterprise Support,Advertising/Promoting Services,255
http://statistics.data.gov.uk/id/local-authority/12UE,Huntingdonshire District Council,16/02/2012,97657,48.58,Vodafone Limited,CR029120,Business Analysis,Mobile Telephones & Radios,241
http://statistics.data.gov.uk/id/local-authority/12UE,Huntingdonshire District Council,23/02/2012,99300,186.66,British Telecommunications Plc,CR027071,C C T V,I T Line Rental,248
http://statistics.data.gov.uk/id/local-authority/12UE,Huntingdonshire District Council,02/02/2012,97707,787.26,E-On Energy,CR416430,C C T V,Electricity,420
http://statistics.data.gov.uk/id/local-authority/12UE,Huntingdonshire District Council,02/02/2012,97709,789.01,E-On Energy,CR416430,C C T V,Electricity,420
http://statistics.data.gov.uk/id/local-authority/12UE,Huntingdonshire District Council,02/02/2012,97258,2807.81,Quadrant Security Group,CR027775,C C T V,Equipment Maintenance,511
http://statistics.data.gov.uk/id/local-authority/12UE,Huntingdonshire District Council,16/02/2012,98193,2807.81,Quadrant Security Group,CR027775,C C T V,Equipment Maintenance,511
http://statistics.data.gov.uk/id/local-authority/12UE,Huntingdonshire District Council,16/02/2012,98194,2807.81,Quadrant Security Group,CR027775,C C T V,Equipment Maintenance,511
http://statistics.data.gov.uk/id/local-authority/12UE,Huntingdonshire District Council,16/02/2012,97657,70.16,Vodafone Limited,CR029120,C C T V,Mobile Telephones & Radios,241
http://statistics.data.gov.uk/id/local-authority/12UE,Huntingdonshire District Council,23/02/2012,98055,225.60,Aos,CR406269,Call Centre,Printers,208
http://statistics.data.gov.uk/id/local-authority/12UE,Huntingdonshire District Council,16/02/2012,97198,812.00,Frontline,CR480881,Call Centre,Training - Other,136
http://statistics.data.gov.uk/id/local-authority/12UE,Huntingdonshire District Council,16/02/2012,98378,17.57,T N T Post Midlands Ltd,CR479965,Call Centre,Postage,231
http://statistics.data.gov.uk/id/local-authority/12UE,Huntingdonshire District Council,09/02/2012,98381,16.62,T N T Post Midlands Ltd,CR479965,Call Centre,Postage,231
http://statistics.data.gov.uk/id/local-authority/12UE,Huntingdonshire District Council,23/02/2012,98380,18.82,T N T Post Midlands Ltd,CR479965,Call Centre,Postage,231
http://statistics.data.gov.uk/id/local-authority/12UE,Huntingdonshire District Council,16/02/2012,97657,10.84,Vodafone Limited,CR029120,Call Centre,Mobile Telephones & Radios,241
http://statistics.data.gov.uk/id/local-authority/12UE,Huntingdonshire District Council,16/02/2012,97507,388.80,Cale Briparc Ltd,CR401137,Car Park Management,Car Park Machines,522
http://statistics.data.gov.uk/id/local-authority/12UE,Huntingdonshire District Council,16/02/2012,97657,1004.11,Vodafone Limited,CR029120,Car Park Management,Mobile Telephones & Radios,241
http://statistics.data.gov.uk/id/local-authority/12UE,Huntingdonshire District Council,09/02/2012,98546,2103.12,Andrew Sparke Consulting,CR453854,Central & Democratic Serv Mu,Legal Fees,729
http://statistics.data.gov.uk/id/local-authority/12UE,Huntingdonshire District Council,16/02/2012,98956,492.00,Lgg-Slg,CR401720,Central & Democratic Serv Mu,Conferences,137
http://statistics.data.gov.uk/id/local-authority/12UE,Huntingdonshire District Council,16/02/2012,98997,252.62,Lgg-Slg,CR401720,Central & Democratic Serv Mu,Conferences,137
http://statistics.data.gov.uk/id/local-authority/12UE,Huntingdonshire District Council,23/02/2012,98183,735.30,Lgg-Slg,CR401720,Central & Democratic Serv Mu,Training - Other,136
http://statistics.data.gov.uk/id/local-authority/12UE,Huntingdonshire District Council,02/02/2012,97033,258.00,Lgg-Slg,CR401720,Central & Democratic Serv Mu,Training - Professional,130
http://statistics.data.gov.uk/id/local-authority/12UE,Huntingdonshire District Council,02/02/2012,97480,4326.48,Peter Lockyer Advertising Ltd,CR033030,Central & Democratic Serv Mu,Recruitment - Advertising,120
http://statistics.data.gov.uk/id/local-authority/12UE,Huntingdonshire District Council,23/02/2012,99257,723.00,Thomson Reuters,CR412314,Central & Democratic Serv Mu,Books & Publications,250
http://statistics.data.gov.uk/id/local-authority/12UE,Huntingdonshire District Council,23/02/2012,98182,205.00,Thomson Reuters,CR412314,Central & Democratic Serv Mu,Books & Publications,250
http://statistics.data.gov.uk/id/local-authority/12UE,Huntingdonshire District Council,16/02/2012,97657,206.46,Vodafone Limited,CR029120,Central & Democratic Serv Mu,Mobile Telephones & Radios,241
http://statistics.data.gov.uk/id/local-authority/12UE,Huntingdonshire District Council,02/02/2012,96527,26.01,Lyreco Uk Ltd,CR400700,Commerce & Tech Director Mus,Stationery,225
http://statistics.data.gov.uk/id/local-authority/12UE,Huntingdonshire District Council,16/02/2012,97657,100.55,Vodafone Limited,CR029120,Commerce & Tech Director Mus,Mobile Telephones & Radios,241
http://statistics.data.gov.uk/id/local-authority/12UE,Huntingdonshire District Council,02/02/2012,97070,288.50,Todd & Cue Ltd,CR453767,Community Safety,Ins (Service Related),260
http://statistics.data.gov.uk/id/local-authority/12UE,Huntingdonshire District Council,02/02/2012,97073,288.50,Todd & Cue Ltd,CR453767,Community Safety,Ins (Service Related),260
http://statistics.data.gov.uk/id/local-authority/12UE,Huntingdonshire District Council,16/02/2012,97657,71.86,Vodafone Limited,CR029120,Community Safety,Mobile Telephones & Radios,241
http://statistics.data.gov.uk/id/local-authority/12UE,Huntingdonshire District Council,16/02/2012,97657,356.95,Vodafone Limited,CR029120,Community Services M Us,Mobile Telephones & Radios,241
http://statistics.data.gov.uk/id/local-authority/12UE,Huntingdonshire District Council,09/02/2012,97282,290.60,Newlyn Plc,CR409114,Council Tax,Bailiffs,703
http://statistics.data.gov.uk/id/local-authority/12UE,Huntingdonshire District Council,02/02/2012,96662,837.05,Newlyn Plc,CR409114,Council Tax,Bailiffs,703
http://statistics.data.gov.uk/id/local-authority/12UE,Huntingdonshire District Council,16/02/2012,97739,495.63,Newlyn Plc,CR409114,Council Tax,Bailiffs,703
http://statistics.data.gov.uk/id/local-authority/12UE,Huntingdonshire District Council,16/02/2012,97721,287.49,Rossendales Ltd,CR479503,Council Tax,Bailiffs,703
http://statistics.data.gov.uk/id/local-authority/12UE,Huntingdonshire District Council,16/02/2012,98814,201.60,Btcv Enterprises Ltd,CR400516,Countryside Management,Training - Operational,131
http://statistics.data.gov.uk/id/local-authority/12UE,Huntingdonshire District Council,16/02/2012,98923,-32.78,C F Parkinson Ltd,CR410442,Countryside Management,Vehicle Parts,625
http://statistics.data.gov.uk/id/local-authority/12UE,Huntingdonshire District Council,16/02/2012,97655,58.50,Howsafe Ltd,CR000409,Countryside Management,Protective Clothing & Uniforms,163
http://statistics.data.gov.uk/id/local-authority/12UE,Huntingdonshire District Council,08/02/2012,98547,1000.00,Lafarge Aggregates Limited,CR411062,Countryside Management,Legal Fees,729
http://statistics.data.gov.uk/id/local-authority/12UE,Huntingdonshire District Council,16/02/2012,529217,210.00,Post Office  Ltd,CR008902,Countryside Management,Vehicle Licence,609
http://statistics.data.gov.uk/id/local-authority/12UE,Huntingdonshire District Council,16/02/2012,97657,71.75,Vodafone Limited,CR029120,Countryside Management,Mobile Telephones & Radios,241
http://statistics.data.gov.uk/id/local-authority/12UE,Huntingdonshire District Council,23/02/2012,99234,49.78,Aos,CR406269,Customer Service Centres,Printers,208
http://statistics.data.gov.uk/id/local-authority/12UE,Huntingdonshire District Council,02/02/2012,96504,93.60,Beebys Limited,CR415822,Customer Service Centres,Building Cleaning Internal,440
http://statistics.data.gov.uk/id/local-authority/12UE,Huntingdonshire District Council,09/02/2012,96836,547.42,Cambridgeshire County Council,CR477465,Customer Service Centres,Service Charges,412
http://statistics.data.gov.uk/id/local-authority/12UE,Huntingdonshire District Council,02/02/2012,96526,36.88,Lyreco Uk Ltd,CR400700,Customer Service Centres,Stationery,225
http://statistics.data.gov.uk/id/local-authority/12UE,Huntingdonshire District Council,16/02/2012,97500,6.89,Lyreco Uk Ltd,CR400700,Customer Service Centres,Stationery,225
http://statistics.data.gov.uk/id/local-authority/12UE,Huntingdonshire District Council,23/02/2012,98619,95.00,Magenta Coaching Solutions,CR480942,Customer Service Centres,Training - Other,136
http://statistics.data.gov.uk/id/local-authority/12UE,Huntingdonshire District Council,02/02/2012,96548,60.41,Virgin Media Business,CR033120,Customer Service Centres,Telephone Charges,240
http://statistics.data.gov.uk/id/local-authority/12UE,Huntingdonshire District Council,16/02/2012,97657,76.70,Vodafone Limited,CR029120,Customer Service Centres,Mobile Telephones & Radios,241
http://statistics.data.gov.uk/id/local-authority/12UE,Huntingdonshire District Council,23/02/2012,98608,7003.76,Drivers  Jonas Deloitte,CR400573,Dc Application Processing,Consultants,711
http://statistics.data.gov.uk/id/local-authority/12UE,Huntingdonshire District Council,09/02/2012,97552,157.25,Hunts Post,CR040030,Dc Application Processing,Advertising - Statutory Notice,257
http://statistics.data.gov.uk/id/local-authority/12UE,Huntingdonshire District Council,02/02/2012,96824,122.30,Hunts Post,CR040030,Dc Application Processing,Advertising - Statutory Notice,257
http://statistics.data.gov.uk/id/local-authority/12UE,Huntingdonshire District Council,16/02/2012,98620,10841.29,Jon Etchells Consulting Ltd,CR482678,Dc Application Processing,Consultants,711
http://statistics.data.gov.uk/id/local-authority/12UE,Huntingdonshire District Council,09/02/2012,97551,3000.00,Mr G H Jones,CR453833,Dc Application Processing,Consultants,711
http://statistics.data.gov.uk/id/local-authority/12UE,Huntingdonshire District Council,23/02/2012,97979,30.00,Phoenix Software Ltd,CR031918,Dc Application Processing,Software,206
http://statistics.data.gov.uk/id/local-authority/12UE,Huntingdonshire District Council,09/02/2012,97330,252.54,Phoenix Software Ltd,CR031918,Dc Application Processing,Software,206
http://statistics.data.gov.uk/id/local-authority/12UE,Huntingdonshire District Council,16/02/2012,97687,900.00,Reading Agricultural Consultants,CR404991,Dc Application Processing,Consultants,711
http://statistics.data.gov.uk/id/local-authority/12UE,Huntingdonshire District Council,23/02/2012,98825,540.00,Reading Agricultural Consultants,CR404991,Dc Application Processing,Consultants,711
http://statistics.data.gov.uk/id/local-authority/12UE,Huntingdonshire District Council,23/02/2012,99381,345.60,The Wildlife Trust Beds Cambs & Northants,CR401987,Dc Application Processing,Consultants,711
http://statistics.data.gov.uk/id/local-authority/12UE,Huntingdonshire District Council,16/02/2012,97657,68.88,Vodafone Limited,CR029120,Development Team,Mobile Telephones & Radios,241
http://statistics.data.gov.uk/id/local-authority/12UE,Huntingdonshire District Council,16/02/2012,98922,193.63,Antalis Ltd,CR479468,Document Centre,Paper,562
http://statistics.data.gov.uk/id/local-authority/12UE,Huntingdonshire District Council,23/02/2012,98365,47.04,B & H Digital Ltd,CR478080,Document Centre,Subcontractors,777
http://statistics.data.gov.uk/id/local-authority/12UE,Huntingdonshire District Council,02/02/2012,96607,196.64,Konica Minolta Business Solutions East Ltd,CR478866,Document Centre,Equipment Maintenance,511
http://statistics.data.gov.uk/id/local-authority/12UE,Huntingdonshire District Council,02/02/2012,96610,27.64,Konica Minolta Business Solutions East Ltd,CR478866,Document Centre,Equipment Maintenance,511
http://statistics.data.gov.uk/id/local-authority/12UE,Huntingdonshire District Council,02/02/2012,97115,73.07,Konica Minolta Business Solutions East Ltd,CR478866,Document Centre,Equipment Maintenance,511
http://statistics.data.gov.uk/id/local-authority/12UE,Huntingdonshire District Council,02/02/2012,97116,18.43,Konica Minolta Business Solutions East Ltd,CR478866,Document Centre,Equipment Maintenance,511
http://statistics.data.gov.uk/id/local-authority/12UE,Huntingdonshire District Council,02/02/2012,97117,34.86,Konica Minolta Business Solutions East Ltd,CR478866,Document Centre,Equipment Maintenance,511
http://statistics.data.gov.uk/id/local-authority/12UE,Huntingdonshire District Council,02/02/2012,97118,12.55,Konica Minolta Business Solutions East Ltd,CR478866,Document Centre,Equipment Maintenance,511
http://statistics.data.gov.uk/id/local-authority/12UE,Huntingdonshire District Council,02/02/2012,97120,17.44,Konica Minolta Business Solutions East Ltd,CR478866,Document Centre,Equipment Maintenance,511
http://statistics.data.gov.uk/id/local-authority/12UE,Huntingdonshire District Council,02/02/2012,97121,45.19,Konica Minolta Business Solutions East Ltd,CR478866,Document Centre,Equipment Maintenance,511
http://statistics.data.gov.uk/id/local-authority/12UE,Huntingdonshire District Council,02/02/2012,97122,17.48,Konica Minolta Business Solutions East Ltd,CR478866,Document Centre,Equipment Maintenance,511
http://statistics.data.gov.uk/id/local-authority/12UE,Huntingdonshire District Council,02/02/2012,97123,3.74,Konica Minolta Business Solutions East Ltd,CR478866,Document Centre,Equipment Maintenance,511
http://statistics.data.gov.uk/id/local-authority/12UE,Huntingdonshire District Council,02/02/2012,97124,12.48,Konica Minolta Business Solutions East Ltd,CR478866,Document Centre,Equipment Maintenance,511
http://statistics.data.gov.uk/id/local-authority/12UE,Huntingdonshire District Council,02/02/2012,97125,60.17,Konica Minolta Business Solutions East Ltd,CR478866,Document Centre,Equipment Maintenance,511
http://statistics.data.gov.uk/id/local-authority/12UE,Huntingdonshire District Council,02/02/2012,97126,1.73,Konica Minolta Business Solutions East Ltd,CR478866,Document Centre,Equipment Maintenance,511
http://statistics.data.gov.uk/id/local-authority/12UE,Huntingdonshire District Council,02/02/2012,97127,54.44,Konica Minolta Business Solutions East Ltd,CR478866,Document Centre,Equipment Maintenance,511
http://statistics.data.gov.uk/id/local-authority/12UE,Huntingdonshire District Council,02/02/2012,97128,230.47,Konica Minolta Business Solutions East Ltd,CR478866,Document Centre,Equipment Maintenance,511
http://statistics.data.gov.uk/id/local-authority/12UE,Huntingdonshire District Council,02/02/2012,97129,60.18,Konica Minolta Business Solutions East Ltd,CR478866,Document Centre,Equipment Maintenance,511
http://statistics.data.gov.uk/id/local-authority/12UE,Huntingdonshire District Council,02/02/2012,97130,37.81,Konica Minolta Business Solutions East Ltd,CR478866,Document Centre,Equipment Maintenance,511
http://statistics.data.gov.uk/id/local-authority/12UE,Huntingdonshire District Council,02/02/2012,97132,12.01,Konica Minolta Business Solutions East Ltd,CR478866,Document Centre,Equipment Maintenance,511
http://statistics.data.gov.uk/id/local-authority/12UE,Huntingdonshire District Council,02/02/2012,97133,29.36,Konica Minolta Business Solutions East Ltd,CR478866,Document Centre,Equipment Maintenance,511
http://statistics.data.gov.uk/id/local-authority/12UE,Huntingdonshire District Council,16/02/2012,97503,55.02,Lyreco Uk Ltd,CR400700,Document Centre,Materials,550
http://statistics.data.gov.uk/id/local-authority/12UE,Huntingdonshire District Council,16/02/2012,97597,220.90,Marshall Motor Group,CR009641,Document Centre,Vehicle Parts,625
http://statistics.data.gov.uk/id/local-authority/12UE,Huntingdonshire District Council,16/02/2012,97598,8.81,Marshall Motor Group,CR009641,Document Centre,Vehicle Parts,625
http://statistics.data.gov.uk/id/local-authority/12UE,Huntingdonshire District Council,23/02/2012,97086,1035.17,Oce Uk Limited,CR409013,Document Centre,Equipment Maintenance,511
http://statistics.data.gov.uk/id/local-authority/12UE,Huntingdonshire District Council,23/02/2012,97917,-2804.76,Oce Uk Limited,CR409013,Document Centre,Equipment Maintenance,511
http://statistics.data.gov.uk/id/local-authority/12UE,Huntingdonshire District Council,23/02/2012,97918,-2787.41,Oce Uk Limited,CR409013,Document Centre,Equipment Maintenance,511
http://statistics.data.gov.uk/id/local-authority/12UE,Huntingdonshire District Council,23/02/2012,97919,-3005.69,Oce Uk Limited,CR409013,Document Centre,Equipment Maintenance,511
http://statistics.data.gov.uk/id/local-authority/12UE,Huntingdonshire District Council,23/02/2012,97920,-5345.14,Oce Uk Limited,CR409013,Document Centre,Equipment Maintenance,511
http://statistics.data.gov.uk/id/local-authority/12UE,Huntingdonshire District Council,23/02/2012,97921,2631.80,Oce Uk Limited,CR409013,Document Centre,Equipment Maintenance,511
http://statistics.data.gov.uk/id/local-authority/12UE,Huntingdonshire District Council,23/02/2012,97922,2615.53,Oce Uk Limited,CR409013,Document Centre,Equipment Maintenance,511
http://statistics.data.gov.uk/id/local-authority/12UE,Huntingdonshire District Council,23/02/2012,97923,5017.86,Oce Uk Limited,CR409013,Document Centre,Equipment Maintenance,511
http://statistics.data.gov.uk/id/local-authority/12UE,Huntingdonshire District Council,23/02/2012,97924,2821.62,Oce Uk Limited,CR409013,Document Centre,Equipment Maintenance,511
http://statistics.data.gov.uk/id/local-authority/12UE,Huntingdonshire District Council,09/02/2012,98383,1448.52,Ricoh Uk Ltd,CR477632,Document Centre,Equipment Maintenance,511
http://statistics.data.gov.uk/id/local-authority/12UE,Huntingdonshire District Council,02/02/2012,96512,255.06,Royal Mail,CR027083,Document Centre,Postage,231
http://statistics.data.gov.uk/id/local-authority/12UE,Huntingdonshire District Council,02/02/2012,96612,89.56,Royal Mail,CR027083,Document Centre,Postage,231
http://statistics.data.gov.uk/id/local-authority/12UE,Huntingdonshire District Council,09/02/2012,97338,1335.47,Royal Mail,CR027083,Document Centre,Postage,231
http://statistics.data.gov.uk/id/local-authority/12UE,Huntingdonshire District Council,23/02/2012,98377,1141.65,Royal Mail,CR027083,Document Centre,Postage,231
http://statistics.data.gov.uk/id/local-authority/12UE,Huntingdonshire District Council,23/02/2012,98363,2457.60,Surrey Envelopes,CR482428,Document Centre,Subcontractors,777
http://statistics.data.gov.uk/id/local-authority/12UE,Huntingdonshire District Council,16/02/2012,98378,973.67,T N T Post Midlands Ltd,CR479965,Document Centre,Postage,231
http://statistics.data.gov.uk/id/local-authority/12UE,Huntingdonshire District Council,16/02/2012,98379,7.99,T N T Post Midlands Ltd,CR479965,Document Centre,Postage,231
http://statistics.data.gov.uk/id/local-authority/12UE,Huntingdonshire District Council,02/02/2012,97488,1409.37,T N T Post Midlands Ltd,CR479965,Document Centre,Postage,231
http://statistics.data.gov.uk/id/local-authority/12UE,Huntingdonshire District Council,09/02/2012,98381,920.34,T N T Post Midlands Ltd,CR479965,Document Centre,Postage,231
http://statistics.data.gov.uk/id/local-authority/12UE,Huntingdonshire District Council,23/02/2012,98380,1340.30,T N T Post Midlands Ltd,CR479965,Document Centre,Postage,231
http://statistics.data.gov.uk/id/local-authority/12UE,Huntingdonshire District Council,23/02/2012,99480,58.00,Vernon Motors,CR026174,Document Centre,Vehicle Mot,622
http://statistics.data.gov.uk/id/local-authority/12UE,Huntingdonshire District Council,16/02/2012,97657,7.63,Vodafone Limited,CR029120,Document Centre,Mobile Telephones & Radios,241
http://statistics.data.gov.uk/id/local-authority/12UE,Huntingdonshire District Council,16/02/2012,97935,297.60,Xerox Office Supplies,CR481184,Document Centre,Paper,562
http://statistics.data.gov.uk/id/local-authority/12UE,Huntingdonshire District Council,23/02/2012,98364,392.76,Xerox Office Supplies,CR481184,Document Centre,Paper,562
http://statistics.data.gov.uk/id/local-authority/12UE,Huntingdonshire District Council,02/02/2012,97067,542.29,Xerox Office Supplies,CR481184,Document Centre,Paper,562
http://statistics.data.gov.uk/id/local-authority/12UE,Huntingdonshire District Council,02/02/2012,97069,297.60,Xerox Office Supplies,CR481184,Document Centre,Paper,562
http://statistics.data.gov.uk/id/local-authority/12UE,Huntingdonshire District Council,09/02/2012,97298,327.36,Xerox Office Supplies,CR481184,Document Centre,Paper,562
http://statistics.data.gov.uk/id/local-authority/12UE,Huntingdonshire District Council,09/02/2012,97300,124.99,Xerox Office Supplies,CR481184,Document Centre,Paper,562
http://statistics.data.gov.uk/id/local-authority/12UE,Huntingdonshire District Council,16/02/2012,97938,591.58,Xerox Office Supplies,CR481184,Document Centre,Paper,562
http://statistics.data.gov.uk/id/local-authority/12UE,Huntingdonshire District Council,16/02/2012,97939,160.32,Xerox Office Supplies,CR481184,Document Centre,Paper,562
http://statistics.data.gov.uk/id/local-authority/12UE,Huntingdonshire District Council,23/02/2012,98398,208.80,Xerox Office Supplies,CR481184,Document Centre,Paper,562
http://statistics.data.gov.uk/id/local-authority/12UE,Huntingdonshire District Council,16/02/2012,98399,556.26,Xerox Office Supplies,CR481184,Document Centre,Paper,562
http://statistics.data.gov.uk/id/local-authority/12UE,Huntingdonshire District Council,02/02/2012,96574,106.74,A C Commercials,CR000141,Domestic Refuse,Vehicle Parts,625
http://statistics.data.gov.uk/id/local-authority/12UE,Huntingdonshire District Council,02/02/2012,96674,156.77,Dennis Eagle Ltd,CR000200,Domestic Refuse,Vehicle Parts,625
http://statistics.data.gov.uk/id/local-authority/12UE,Huntingdonshire District Council,02/02/2012,96676,312.98,Dennis Eagle Ltd,CR000200,Domestic Refuse,Vehicle Parts,625
http://statistics.data.gov.uk/id/local-authority/12UE,Huntingdonshire District Council,23/02/2012,98477,277.73,Dennis Eagle Ltd,CR000200,Domestic Refuse,Vehicle Parts,625
http://statistics.data.gov.uk/id/local-authority/12UE,Huntingdonshire District Council,23/02/2012,98478,533.30,Dennis Eagle Ltd,CR000200,Domestic Refuse,Vehicle Parts,625
http://statistics.data.gov.uk/id/local-authority/12UE,Huntingdonshire District Council,23/02/2012,98480,748.81,Dennis Eagle Ltd,CR000200,Domestic Refuse,Vehicle Parts,625
http://statistics.data.gov.uk/id/local-authority/12UE,Huntingdonshire District Council,23/02/2012,98482,136.07,Dennis Eagle Ltd,CR000200,Domestic Refuse,Vehicle Parts,625
http://statistics.data.gov.uk/id/local-authority/12UE,Huntingdonshire District Council,23/02/2012,98483,218.90,Dennis Eagle Ltd,CR000200,Domestic Refuse,Vehicle Parts,625
http://statistics.data.gov.uk/id/local-authority/12UE,Huntingdonshire District Council,16/02/2012,98488,1200.00,Dennis Eagle Ltd,CR000200,Domestic Refuse,Vehicle Parts,625
http://statistics.data.gov.uk/id/local-authority/12UE,Huntingdonshire District Council,09/02/2012,97211,318.60,Frank Ratcliffe & Son,CR007546,Domestic Refuse,Subcontractors,777
http://statistics.data.gov.uk/id/local-authority/12UE,Huntingdonshire District Council,23/02/2012,99425,36.99,George Alan,CR403103,Domestic Refuse,Protective Clothing & Uniforms,163
http://statistics.data.gov.uk/id/local-authority/12UE,Huntingdonshire District Council,23/02/2012,98498,633.00,M & N Vehicle Services,CR480661,Domestic Refuse,Vehicle Parts,625
http://statistics.data.gov.uk/id/local-authority/12UE,Huntingdonshire District Council,02/02/2012,96270,324.50,Marshall Motor Group,CR009641,Domestic Refuse,Vehicle Parts,625
http://statistics.data.gov.uk/id/local-authority/12UE,Huntingdonshire District Council,16/02/2012,529217,3250.00,Post Office  Ltd,CR008902,Domestic Refuse,Vehicle Licence,609
http://statistics.data.gov.uk/id/local-authority/12UE,Huntingdonshire District Council,09/02/2012,97267,8.01,R & B Shoe Repairs,CR400515,Domestic Refuse,Equipment Purchases,500
http://statistics.data.gov.uk/id/local-authority/12UE,Huntingdonshire District Council,23/02/2012,98542,972.79,Staffline Group,CR416827,Domestic Refuse,Hired Staff,100
http://statistics.data.gov.uk/id/local-authority/12UE,Huntingdonshire District Council,23/02/2012,98543,1335.53,Staffline Group,CR416827,Domestic Refuse,Hired Staff,100
http://statistics.data.gov.uk/id/local-authority/12UE,Huntingdonshire District Council,09/02/2012,98171,2909.71,Staffline Group,CR416827,Domestic Refuse,Hired Staff,100
http://statistics.data.gov.uk/id/local-authority/12UE,Huntingdonshire District Council,09/02/2012,98165,1544.45,Staffline Group,CR416827,Domestic Refuse,Hired Staff,100
http://statistics.data.gov.uk/id/local-authority/12UE,Huntingdonshire District Council,02/02/2012,98166,1450.86,Staffline Group,CR416827,Domestic Refuse,Hired Staff,100
http://statistics.data.gov.uk/id/local-authority/12UE,Huntingdonshire District Council,02/02/2012,98172,1039.48,Staffline Group,CR416827,Domestic Refuse,Hired Staff,100
http://statistics.data.gov.uk/id/local-authority/12UE,Huntingdonshire District Council,09/02/2012,98168,1004.53,Staffline Group,CR416827,Domestic Refuse,Hired Staff,100
http://statistics.data.gov.uk/id/local-authority/12UE,Huntingdonshire District Council,16/02/2012,98167,964.55,Staffline Group,CR416827,Domestic Refuse,Hired Staff,100
http://statistics.data.gov.uk/id/local-authority/12UE,Huntingdonshire District Council,16/02/2012,98173,918.59,Staffline Group,CR416827,Domestic Refuse,Hired Staff,100
http://statistics.data.gov.uk/id/local-authority/12UE,Huntingdonshire District Council,16/02/2012,98170,601.81,Staffline Group,CR416827,Domestic Refuse,Hired Staff,100
http://statistics.data.gov.uk/id/local-authority/12UE,Huntingdonshire District Council,23/02/2012,98492,90.00,Terberg Matec Uk Ltd,CR402183,Domestic Refuse,Vehicle Maintenance,619
http://statistics.data.gov.uk/id/local-authority/12UE,Huntingdonshire District Council,09/02/2012,97279,579.17,Terberg Matec Uk Ltd,CR402183,Domestic Refuse,Vehicle Parts,625
http://statistics.data.gov.uk/id/local-authority/12UE,Huntingdonshire District Council,09/02/2012,97280,298.28,Terberg Matec Uk Ltd,CR402183,Domestic Refuse,Vehicle Parts,625
http://statistics.data.gov.uk/id/local-authority/12UE,Huntingdonshire District Council,23/02/2012,98493,103.42,Terberg Matec Uk Ltd,CR402183,Domestic Refuse,Vehicle Parts,625
http://statistics.data.gov.uk/id/local-authority/12UE,Huntingdonshire District Council,23/02/2012,98495,24.76,Terberg Matec Uk Ltd,CR402183,Domestic Refuse,Vehicle Parts,625
http://statistics.data.gov.uk/id/local-authority/12UE,Huntingdonshire District Council,23/02/2012,99204,195.37,Anglian Water,CR000071,Efh & Depots,Water,432
http://statistics.data.gov.uk/id/local-authority/12UE,Huntingdonshire District Council,16/02/2012,98998,145.00,Dms Home Improvements & Electrical,CR479202,Efh & Depots,Gen Building Mtce - Planned,304
http://statistics.data.gov.uk/id/local-authority/12UE,Huntingdonshire District Council,16/02/2012,98996,190.00,Dms Home Improvements & Electrical,CR479202,Efh & Depots,Gen Building Mtce - Responsive,303
http://statistics.data.gov.uk/id/local-authority/12UE,Huntingdonshire District Council,16/02/2012,97727,450.00,Dms Home Improvements & Electrical,CR479202,Efh & Depots,Gen Building Mtce - Responsive,303
http://statistics.data.gov.uk/id/local-authority/12UE,Huntingdonshire District Council,09/02/2012,98199,1356.60,Ecocleen Services Limited,CR406985,Efh & Depots,Building Cleaning Internal,440
http://statistics.data.gov.uk/id/local-authority/12UE,Huntingdonshire District Council,16/02/2012,98809,5973.82,E-On Energy,CR416430,Efh & Depots,Electricity,420
http://statistics.data.gov.uk/id/local-authority/12UE,Huntingdonshire District Council,23/02/2012,97936,150.19,Kershaw Mechanical Services Ltd,CR480268,Efh & Depots,Gen Building Mtce - Responsive,303
http://statistics.data.gov.uk/id/local-authority/12UE,Huntingdonshire District Council,09/02/2012,97064,48.12,Phs Datashred,CR480152,Efh & Depots,Professional Subscriptions,755
http://statistics.data.gov.uk/id/local-authority/12UE,Huntingdonshire District Council,09/02/2012,97169,1705.20,T Clarke East Ltd,CR477493,Efh & Depots,Gen Building Mtce - Responsive,303
http://statistics.data.gov.uk/id/local-authority/12UE,Huntingdonshire District Council,02/02/2012,97488,311.17,T N T Post Midlands Ltd,CR479965,Eh Health & Safety,Postage,231
http://statistics.data.gov.uk/id/local-authority/12UE,Huntingdonshire District Council,16/02/2012,98378,154.33,T N T Post Midlands Ltd,CR479965,Elections,Postage,231
http://statistics.data.gov.uk/id/local-authority/12UE,Huntingdonshire District Council,23/02/2012,98380,40.14,T N T Post Midlands Ltd,CR479965,Elections,Postage,231
http://statistics.data.gov.uk/id/local-authority/12UE,Huntingdonshire District Council,09/02/2012,97077,856.30,Cambridge Newspapers Ltd,CR410062,Energy Efficiency,Advertising/Promoting Services,255
http://statistics.data.gov.uk/id/local-authority/12UE,Huntingdonshire District Council,09/02/2012,97055,240.00,Gas Street Works Ltd,CR479939,Energy Efficiency,Consultants,711
http://statistics.data.gov.uk/id/local-authority/12UE,Huntingdonshire District Council,16/02/2012,97536,540.00,Marney Hall Consultancy Limited,CR480342,Energy Efficiency,Sitework,359
http://statistics.data.gov.uk/id/local-authority/12UE,Huntingdonshire District Council,02/02/2012,97535,720.00,Marney Hall Consultancy Limited,CR480342,Energy Efficiency,Sitework,359
http://statistics.data.gov.uk/id/local-authority/12UE,Huntingdonshire District Council,21/02/2012,97489,1520.00,Printexpress.Co.Uk,CR478393,Energy Efficiency,Advertising/Promoting Services,255
http://statistics.data.gov.uk/id/local-authority/12UE,Huntingdonshire District Council,23/02/2012,99211,1194.00,Fire Risk Consultancy,CR407187,Engineering & Arch M Us,Training - Operational,131
http://statistics.data.gov.uk/id/local-authority/12UE,Huntingdonshire District Council,16/02/2012,97657,945.70,Vodafone Limited,CR029120,Engineering & Arch M Us,Mobile Telephones & Radios,241
http://statistics.data.gov.uk/id/local-authority/12UE,Huntingdonshire District Council,16/02/2012,97657,1246.65,Vodafone Limited,CR029120,Environmental Health M Us,Mobile Telephones & Radios,241
http://statistics.data.gov.uk/id/local-authority/12UE,Huntingdonshire District Council,16/02/2012,98824,944.90,Lex Autolease Ltd,CR410751,Executive Director,Vehicle Operating Lease,601
http://statistics.data.gov.uk/id/local-authority/12UE,Huntingdonshire District Council,16/02/2012,97657,29.80,Vodafone Limited,CR029120,Executive Director,Mobile Telephones & Radios,241
http://statistics.data.gov.uk/id/local-authority/12UE,Huntingdonshire District Council,02/02/2012,98053,2069.22,C G Utilities,CR119758,Facilities Mgt,Consultants,711
http://statistics.data.gov.uk/id/local-authority/12UE,Huntingdonshire District Council,16/02/2012,97657,7.82,Vodafone Limited,CR029120,Facilities Mgt,Mobile Telephones & Radios,241
http://statistics.data.gov.uk/id/local-authority/12UE,Huntingdonshire District Council,02/02/2012,97929,19225.32,Kennedys,CR478788,Financial Services,Insurance Public Liability,160
http://statistics.data.gov.uk/id/local-authority/12UE,Huntingdonshire District Council,02/02/2012,97930,3750.60,Kennedys,CR478788,Financial Services,Insurance Public Liability,160
http://statistics.data.gov.uk/id/local-authority/12UE,Huntingdonshire District Council,16/02/2012,97495,89.50,Aos,CR406269,Financial Services Mus,Printers,208
http://statistics.data.gov.uk/id/local-authority/12UE,Huntingdonshire District Council,23/02/2012,99520,1498.30,Cipfa Business Limited,CR480088,Financial Services Mus,Books & Publications,250
http://statistics.data.gov.uk/id/local-authority/12UE,Huntingdonshire District Council,23/02/2012,98056,294.00,Cipfa Business Limited,CR480088,Financial Services Mus,Training - Operational,131
http://statistics.data.gov.uk/id/local-authority/12UE,Huntingdonshire District Council,16/02/2012,97502,23.83,Lyreco Uk Ltd,CR400700,Financial Services Mus,Stationery,225
http://statistics.data.gov.uk/id/local-authority/12UE,Huntingdonshire District Council,16/02/2012,97505,19.67,Lyreco Uk Ltd,CR400700,Financial Services Mus,Stationery,225
http://statistics.data.gov.uk/id/local-authority/12UE,Huntingdonshire District Council,16/02/2012,97657,12.41,Vodafone Limited,CR029120,Financial Services Mus,Mobile Telephones & Radios,241
http://statistics.data.gov.uk/id/local-authority/12UE,Huntingdonshire District Council,02/02/2012,96692,234.00,Beissbarth Uk Ltd,CR478775,Fleet Management,Vehicle Maintenance,619
http://statistics.data.gov.uk/id/local-authority/12UE,Huntingdonshire District Council,02/02/2012,96743,106.92,C F Parkinson Ltd,CR410442,Fleet Management,Vehicle Parts,625
http://statistics.data.gov.uk/id/local-authority/12UE,Huntingdonshire District Council,02/02/2012,96826,46.80,Direct Telecom Services Ltd,CR001981,Fleet Management,Mobile Telephones & Radios,241
http://statistics.data.gov.uk/id/local-authority/12UE,Huntingdonshire District Council,16/02/2012,98987,100.15,Fenland Factors,CR024722,Fleet Management,Equipment Purchases,500
http://statistics.data.gov.uk/id/local-authority/12UE,Huntingdonshire District Council,23/02/2012,99460,114.52,Fenland Factors,CR024722,Fleet Management,Materials,550
http://statistics.data.gov.uk/id/local-authority/12UE,Huntingdonshire District Council,16/02/2012,98013,408.00,Ians Tyre And Exhaust Centre,CR405836,Fleet Management,Tyres,630
http://statistics.data.gov.uk/id/local-authority/12UE,Huntingdonshire District Council,16/02/2012,98964,-17.23,Marshall Motor Group,CR009641,Fleet Management,Vehicle Parts,625
http://statistics.data.gov.uk/id/local-authority/12UE,Huntingdonshire District Council,16/02/2012,98965,164.79,Pvc Vendo (Ramsey),CR003568,Fleet Management,Vehicle Cleaning,620
http://statistics.data.gov.uk/id/local-authority/12UE,Huntingdonshire District Council,16/02/2012,98966,188.87,Pvc Vendo (Ramsey),CR003568,Fleet Management,Vehicle Cleaning,620
http://statistics.data.gov.uk/id/local-authority/12UE,Huntingdonshire District Council,23/02/2012,98525,115.20,Safety-Kleen Uk Ltd,CR006179,Fleet Management,Materials,550
http://statistics.data.gov.uk/id/local-authority/12UE,Huntingdonshire District Council,16/02/2012,97683,2656.07,Terberg Matec Uk Ltd,CR402183,Fleet Management,Vehicle Parts,625
http://statistics.data.gov.uk/id/local-authority/12UE,Huntingdonshire District Council,09/02/2012,97171,688.92,Osborne Richardson,CR482551,Food Safety,Hired Staff,100
http://statistics.data.gov.uk/id/local-authority/12UE,Huntingdonshire District Council,16/02/2012,97589,539.10,Osborne Richardson,CR482551,Food Safety,Hired Staff,100
http://statistics.data.gov.uk/id/local-authority/12UE,Huntingdonshire District Council,23/02/2012,98045,521.14,Osborne Richardson,CR482551,Food Safety,Hired Staff,100
http://statistics.data.gov.uk/id/local-authority/12UE,Huntingdonshire District Council,23/02/2012,97928,1891.20,Swaingrove Imaging,CR478873,Food Safety,Stationery,225
http://statistics.data.gov.uk/id/local-authority/12UE,Huntingdonshire District Council,02/02/2012,97488,311.17,T N T Post Midlands Ltd,CR479965,Food Safety,Postage,231
http://statistics.data.gov.uk/id/local-authority/12UE,Huntingdonshire District Council,23/02/2012,99227,25.79,Bedford Timber Ltd,CR406479,Grounds Maintenance (Combined),Equipment Purchases,500
http://statistics.data.gov.uk/id/local-authority/12UE,Huntingdonshire District Council,02/02/2012,96825,293.83,Cambridgeshire County Council,CR006678,Grounds Maintenance (Combined),Waste Disposal,763
http://statistics.data.gov.uk/id/local-authority/12UE,Huntingdonshire District Council,16/02/2012,99003,48.00,D H M Truck & Tachograph Centr,CR032254,Grounds Maintenance (Combined),Vehicle Maintenance,619
http://statistics.data.gov.uk/id/local-authority/12UE,Huntingdonshire District Council,23/02/2012,99469,78.00,Ians Tyre And Exhaust Centre,CR405836,Grounds Maintenance (Combined),Tyres,630
http://statistics.data.gov.uk/id/local-authority/12UE,Huntingdonshire District Council,16/02/2012,98010,252.00,Ians Tyre And Exhaust Centre,CR405836,Grounds Maintenance (Combined),Tyres,630
http://statistics.data.gov.uk/id/local-authority/12UE,Huntingdonshire District Council,09/02/2012,98018,468.00,Ians Tyre And Exhaust Centre,CR405836,Grounds Maintenance (Combined),Tyres,630
http://statistics.data.gov.uk/id/local-authority/12UE,Huntingdonshire District Council,09/02/2012,97214,361.79,Marshall Motor Group,CR009641,Grounds Maintenance (Combined),Vehicle Maintenance,619
http://statistics.data.gov.uk/id/local-authority/12UE,Huntingdonshire District Council,16/02/2012,97595,198.19,Marshall Motor Group,CR009641,Grounds Maintenance (Combined),Vehicle Parts,625
http://statistics.data.gov.uk/id/local-authority/12UE,Huntingdonshire District Council,16/02/2012,97596,23.89,Marshall Motor Group,CR009641,Grounds Maintenance (Combined),Vehicle Parts,625
http://statistics.data.gov.uk/id/local-authority/12UE,Huntingdonshire District Council,23/02/2012,98184,25.06,Marshall Motor Group,CR009641,Grounds Maintenance (Combined),Vehicle Parts,625
http://statistics.data.gov.uk/id/local-authority/12UE,Huntingdonshire District Council,16/02/2012,529217,840.00,Post Office  Ltd,CR008902,Grounds Maintenance (Combined),Vehicle Licence,609
http://statistics.data.gov.uk/id/local-authority/12UE,Huntingdonshire District Council,09/02/2012,97281,48.00,Ray'S Garage,CR482610,Grounds Maintenance (Combined),Vehicle Mot,622
http://statistics.data.gov.uk/id/local-authority/12UE,Huntingdonshire District Council,09/02/2012,98161,508.42,Staffline Group,CR416827,Grounds Maintenance (Combined),Hired Staff,100
http://statistics.data.gov.uk/id/local-authority/12UE,Huntingdonshire District Council,23/02/2012,99410,77.62,Tnt Uk Limited,CR002239,Grounds Maintenance (Combined),Tyres,630
http://statistics.data.gov.uk/id/local-authority/12UE,Huntingdonshire District Council,23/02/2012,99476,58.00,Vernon Motors,CR026174,Grounds Maintenance (Combined),Vehicle Mot,622
http://statistics.data.gov.uk/id/local-authority/12UE,Huntingdonshire District Council,23/02/2012,99477,58.00,Vernon Motors,CR026174,Grounds Maintenance (Combined),Vehicle Mot,622
http://statistics.data.gov.uk/id/local-authority/12UE,Huntingdonshire District Council,23/02/2012,99479,58.00,Vernon Motors,CR026174,Grounds Maintenance (Combined),Vehicle Mot,622
http://statistics.data.gov.uk/id/local-authority/12UE,Huntingdonshire District Council,23/02/2012,99481,58.00,Vernon Motors,CR026174,Grounds Maintenance (Combined),Vehicle Mot,622
http://statistics.data.gov.uk/id/local-authority/12UE,Huntingdonshire District Council,23/02/2012,99376,606.00,Zurich Municipal,CR003638,Grounds Maintenance (Combined),Insurance Excess,797
http://statistics.data.gov.uk/id/local-authority/12UE,Huntingdonshire District Council,16/02/2012,97657,74.50,Vodafone Limited,CR029120,Head Of Imd,Mobile Telephones & Radios,241
http://statistics.data.gov.uk/id/local-authority/12UE,Huntingdonshire District Council,23/02/2012,99231,309.60,B & B Business Equipment Ltd,CR478057,Helpdesk,Printers,208
http://statistics.data.gov.uk/id/local-authority/12UE,Huntingdonshire District Council,16/02/2012,97657,-24.38,Vodafone Limited,CR029120,Helpdesk,Mobile Telephones & Radios,241
http://statistics.data.gov.uk/id/local-authority/12UE,Huntingdonshire District Council,09/02/2012,97288,97.20,Caterfix Ltd,CR480775,Hinchingbrooke Country Park,Equipment Maintenance,511
http://statistics.data.gov.uk/id/local-authority/12UE,Huntingdonshire District Council,09/02/2012,97590,588.00,Centrewire Ltd,CR401413,Hinchingbrooke Country Park,"Fences, Walls, Gates",356
http://statistics.data.gov.uk/id/local-authority/12UE,Huntingdonshire District Council,02/02/2012,96689,184.32,King Bros,CR411339,Hinchingbrooke Country Park,Catering Materials,559
http://statistics.data.gov.uk/id/local-authority/12UE,Huntingdonshire District Council,02/02/2012,97293,780.53,Lafarge Aggregates Limited,CR411062,Hinchingbrooke Country Park,Sitework,359
http://statistics.data.gov.uk/id/local-authority/12UE,Huntingdonshire District Council,23/02/2012,98931,1050.00,Peter Stopford Tree Specialist,CR478494,Hinchingbrooke Country Park,Sitework,359
http://statistics.data.gov.uk/id/local-authority/12UE,Huntingdonshire District Council,09/02/2012,97297,745.00,Peter Stopford Tree Specialist,CR478494,Hinchingbrooke Country Park,Sitework,359
http://statistics.data.gov.uk/id/local-authority/12UE,Huntingdonshire District Council,16/02/2012,98928,108.00,Tourism South East,CR400337,Hinchingbrooke Country Park,Training - Operational,131
http://statistics.data.gov.uk/id/local-authority/12UE,Huntingdonshire District Council,16/02/2012,97657,28.10,Vodafone Limited,CR029120,Hinchingbrooke Country Park,Mobile Telephones & Radios,241
http://statistics.data.gov.uk/id/local-authority/12UE,Huntingdonshire District Council,23/02/2012,98933,352.66,Watts-Up Ltd,CR480243,Hinchingbrooke Country Park,Gen Building Mtce - Responsive,303
http://statistics.data.gov.uk/id/local-authority/12UE,Huntingdonshire District Council,23/02/2012,99404,496.32,Campbell Rees Partnership,CR028043,Home Improvement Agency,Hired Staff,100
http://statistics.data.gov.uk/id/local-authority/12UE,Huntingdonshire District Council,23/02/2012,99466,510.30,Campbell Rees Partnership,CR028043,Home Improvement Agency,Hired Staff,100
http://statistics.data.gov.uk/id/local-authority/12UE,Huntingdonshire District Council,16/02/2012,97657,92.30,Vodafone Limited,CR029120,Home Improvement Agency,Mobile Telephones & Radios,241
http://statistics.data.gov.uk/id/local-authority/12UE,Huntingdonshire District Council,23/02/2012,99292,120.00,Alexanders Self Storage,CR478267,Homelessness Management,Removal/Storage,750
http://statistics.data.gov.uk/id/local-authority/12UE,Huntingdonshire District Council,09/02/2012,98069,696.00,Alexanders Self Storage,CR478267,Homelessness Management,Removal/Storage,750
http://statistics.data.gov.uk/id/local-authority/12UE,Huntingdonshire District Council,09/02/2012,98070,280.00,Alexanders Self Storage,CR478267,Homelessness Management,Removal/Storage,750
http://statistics.data.gov.uk/id/local-authority/12UE,Huntingdonshire District Council,23/02/2012,98937,80.00,Bluntisham Self Store,CR452715,Homelessness Management,Removal/Storage,750
http://statistics.data.gov.uk/id/local-authority/12UE,Huntingdonshire District Council,23/02/2012,99724,-114.40,Eynesbury Warehousing,CR032275,Homelessness Management,Removal/Storage,750
http://statistics.data.gov.uk/id/local-authority/12UE,Huntingdonshire District Council,16/02/2012,98938,88.00,St Neots Self Storage,CR452727,Homelessness Management,Removal/Storage,750
http://statistics.data.gov.uk/id/local-authority/12UE,Huntingdonshire District Council,23/02/2012,99291,720.00,Hqn Ltd,CR026133,Housing Management Units,Training - Operational,131
http://statistics.data.gov.uk/id/local-authority/12UE,Huntingdonshire District Council,02/02/2012,98063,974.14,James Andrews Recruitment,CR453753,Housing Management Units,Hired Staff,100
http://statistics.data.gov.uk/id/local-authority/12UE,Huntingdonshire District Council,02/02/2012,98064,552.89,James Andrews Recruitment,CR453753,Housing Management Units,Hired Staff,100
http://statistics.data.gov.uk/id/local-authority/12UE,Huntingdonshire District Council,02/02/2012,98093,928.07,James Andrews Recruitment,CR453753,Housing Management Units,Hired Staff,100
http://statistics.data.gov.uk/id/local-authority/12UE,Huntingdonshire District Council,16/02/2012,97499,50.09,Lyreco Uk Ltd,CR400700,Housing Management Units,Stationery,225
http://statistics.data.gov.uk/id/local-authority/12UE,Huntingdonshire District Council,16/02/2012,97657,69.93,Vodafone Limited,CR029120,Housing Management Units,Mobile Telephones & Radios,241
http://statistics.data.gov.uk/id/local-authority/12UE,Huntingdonshire District Council,02/02/2012,96583,4999.67,Accomplished,CR477676,Human Resources,Training - Other,136
http://statistics.data.gov.uk/id/local-authority/12UE,Huntingdonshire District Council,09/02/2012,97172,300.00,Cambridgeshire Consultancy In Counselling,CR410617,Human Resources,Medical Fees,734
http://statistics.data.gov.uk/id/local-authority/12UE,Huntingdonshire District Council,09/02/2012,97173,100.00,Cambridgeshire Consultancy In Counselling,CR410617,Human Resources,Medical Fees,734
http://statistics.data.gov.uk/id/local-authority/12UE,Huntingdonshire District Council,16/02/2012,97519,5923.47,Hinchingbrooke Healthcare Nhs,CR003003,Human Resources,Medical Fees,734
http://statistics.data.gov.uk/id/local-authority/12UE,Huntingdonshire District Council,16/02/2012,97501,79.79,Lyreco Uk Ltd,CR400700,Human Resources,Stationery,225
http://statistics.data.gov.uk/id/local-authority/12UE,Huntingdonshire District Council,16/02/2012,98180,3846.50,Norman & Nicholson,CR415685,Human Resources,Training - Other,136
http://statistics.data.gov.uk/id/local-authority/12UE,Huntingdonshire District Council,02/02/2012,97973,2076.00,Reed Business Information Ltd,CR401020,Human Resources,Books & Publications,250
http://statistics.data.gov.uk/id/local-authority/12UE,Huntingdonshire District Council,16/02/2012,97934,2800.00,Rsa Environmental Health Limited,CR482415,Human Resources,Consultants,711
http://statistics.data.gov.uk/id/local-authority/12UE,Huntingdonshire District Council,16/02/2012,97657,86.77,Vodafone Limited,CR029120,Human Resources,Mobile Telephones & Radios,241
http://statistics.data.gov.uk/id/local-authority/12UE,Huntingdonshire District Council,16/02/2012,98179,2286.00,West Anglia Training Assoc.Ltd,CR025035,Human Resources,Training - Other,136
http://statistics.data.gov.uk/id/local-authority/12UE,Huntingdonshire District Council,16/02/2012,97657,180.00,Vodafone Limited,CR029120,Information Manager,Mobile Telephones & Radios,241
http://statistics.data.gov.uk/id/local-authority/12UE,Huntingdonshire District Council,23/02/2012,99383,594.00,Adem Ltd,CR482561,Internal Services Holding,Equipment Maintenance,511
http://statistics.data.gov.uk/id/local-authority/12UE,Huntingdonshire District Council,02/02/2012,97510,14316.90,Cambridgeshire County Council,CR006678,Land Charges,Other Office Expenses,295
http://statistics.data.gov.uk/id/local-authority/12UE,Huntingdonshire District Council,02/02/2012,98114,69711.00,Building Services Design - Bsd,CR409263,Leisure Centres Capital,Consultants,711
http://statistics.data.gov.uk/id/local-authority/12UE,Huntingdonshire District Council,23/02/2012,98900,174.00,Archant Herts & Cambs,CR415764,Leisure Centres Overall,Advertising/Promoting Services,255
http://statistics.data.gov.uk/id/local-authority/12UE,Huntingdonshire District Council,16/02/2012,97735,55.00,Clanpress King'S Lynn Ltd,CR413516,Leisure Centres Overall,Printing (External),220
http://statistics.data.gov.uk/id/local-authority/12UE,Huntingdonshire District Council,09/02/2012,98007,1122.00,Leisure Database Company,CR479551,Leisure Centres Overall,Consultants,711
http://statistics.data.gov.uk/id/local-authority/12UE,Huntingdonshire District Council,02/02/2012,96619,368.40,Leisure-Net Solutions,CR411853,Leisure Centres Overall,Advertising/Promoting Services,255
http://statistics.data.gov.uk/id/local-authority/12UE,Huntingdonshire District Council,23/02/2012,97753,900.00,Primesight  Ltd,CR132710,Leisure Centres Overall,Advertising/Promoting Services,255
http://statistics.data.gov.uk/id/local-authority/12UE,Huntingdonshire District Council,23/02/2012,98950,174.00,Archant Herts And Cambs,CR403271,Leisure Development,Advertising/Promoting Services,255
http://statistics.data.gov.uk/id/local-authority/12UE,Huntingdonshire District Council,23/02/2012,98951,309.00,Archant Herts And Cambs,CR403271,Leisure Development,Advertising/Promoting Services,255
http://statistics.data.gov.uk/id/local-authority/12UE,Huntingdonshire District Council,16/02/2012,97746,625.00,Bacpr Education,CR477846,Leisure Development,Training - Operational,131
http://statistics.data.gov.uk/id/local-authority/12UE,Huntingdonshire District Council,16/02/2012,97748,587.88,D & L Promotions Ltd,CR410163,Leisure Development,Advertising/Promoting Services,255
http://statistics.data.gov.uk/id/local-authority/12UE,Huntingdonshire District Council,02/02/2012,96860,180.00,Fitnessolutions,CR453834,Leisure Development,Instructors/Tutors,720
http://statistics.data.gov.uk/id/local-authority/12UE,Huntingdonshire District Council,02/02/2012,96839,360.00,John Letters Golf Ltd,CR412288,Leisure Development,Instructors/Tutors,720
http://statistics.data.gov.uk/id/local-authority/12UE,Huntingdonshire District Council,16/02/2012,529217,210.00,Post Office  Ltd,CR008902,Leisure Development,Vehicle Licence,609
http://statistics.data.gov.uk/id/local-authority/12UE,Huntingdonshire District Council,23/02/2012,99500,657.98,Venture Industries Ltd,CR480282,Leisure Development,Equipment Purchases,500
http://statistics.data.gov.uk/id/local-authority/12UE,Huntingdonshire District Council,16/02/2012,97657,134.05,Vodafone Limited,CR029120,Leisure Development,Mobile Telephones & Radios,241
http://statistics.data.gov.uk/id/local-authority/12UE,Huntingdonshire District Council,02/02/2012,97257,6000.00,Peacock Engineering,CR410043,Leisure Services Capital,Sitework,359
http://statistics.data.gov.uk/id/local-authority/12UE,Huntingdonshire District Council,02/02/2012,96612,248.04,Royal Mail,CR027083,Licences,Postage,231
http://statistics.data.gov.uk/id/local-authority/12UE,Huntingdonshire District Council,02/02/2012,96555,1185.00,T C Harrison Ford,CR405072,Licences,Vehicle Inspection,618
http://statistics.data.gov.uk/id/local-authority/12UE,Huntingdonshire District Council,16/02/2012,97517,93.00,Broxap Ltd,CR415958,Littering,Litter Bins,520
http://statistics.data.gov.uk/id/local-authority/12UE,Huntingdonshire District Council,09/02/2012,97515,7316.64,Glasdon Uk Ltd,CR002827,Littering,Litter Bins,520
http://statistics.data.gov.uk/id/local-authority/12UE,Huntingdonshire District Council,23/02/2012,97982,1928.53,John Henry & Sons,CR031967,Littering,Sitework,359
http://statistics.data.gov.uk/id/local-authority/12UE,Huntingdonshire District Council,02/02/2012,96527,7.77,Lyreco Uk Ltd,CR400700,Managing Director (Cpp),Stationery,225
http://statistics.data.gov.uk/id/local-authority/12UE,Huntingdonshire District Council,16/02/2012,97657,91.38,Vodafone Limited,CR029120,Managing Director (Cpp),Mobile Telephones & Radios,241
http://statistics.data.gov.uk/id/local-authority/12UE,Huntingdonshire District Council,16/02/2012,99029,3090.00,Trevor Roberts Associates,CR028712,Member Allowances & Support,Training - Other,136
http://statistics.data.gov.uk/id/local-authority/12UE,Huntingdonshire District Council,02/02/2012,96548,34.50,Virgin Media Business,CR033120,Member Allowances & Support,I T Line Rental,248
http://statistics.data.gov.uk/id/local-authority/12UE,Huntingdonshire District Council,02/02/2012,96548,2.69,Virgin Media Business,CR033120,Member Allowances & Support,Telephone Charges,240
http://statistics.data.gov.uk/id/local-authority/12UE,Huntingdonshire District Council,16/02/2012,97657,135.40,Vodafone Limited,CR029120,Member Allowances & Support,Mobile Telephones & Radios,241
http://statistics.data.gov.uk/id/local-authority/12UE,Huntingdonshire District Council,09/02/2012,97588,60.63,Arthur Ibbett Ltd,CR000430,Misc Countryside Sites,Equipment Purchases,500
http://statistics.data.gov.uk/id/local-authority/12UE,Huntingdonshire District Council,16/02/2012,97657,94.92,Vodafone Limited,CR029120,Misc Countryside Sites,Mobile Telephones & Radios,241
http://statistics.data.gov.uk/id/local-authority/12UE,Huntingdonshire District Council,23/02/2012,99200,10000.00,Hunts Forum Of Voluntary Organisations,CR030582,Miscellaneous Grants,Grants (Paid Out),800
http://statistics.data.gov.uk/id/local-authority/12UE,Huntingdonshire District Council,02/02/2012,96646,117.62,Newlyn Plc,CR409114,N N D R Administration,Bailiffs,703
http://statistics.data.gov.uk/id/local-authority/12UE,Huntingdonshire District Council,16/02/2012,97740,124.45,Newlyn Plc,CR409114,N N D R Administration,Bailiffs,703
http://statistics.data.gov.uk/id/local-authority/12UE,Huntingdonshire District Council,09/02/2012,97265,11313.60,Comtec,CR480140,Network Services,Software,206
http://statistics.data.gov.uk/id/local-authority/12UE,Huntingdonshire District Council,09/02/2012,97277,27897.60,Freedom Communications Uk Ltd,CR478774,Network Services,Equipment Maintenance,511
http://statistics.data.gov.uk/id/local-authority/12UE,Huntingdonshire District Council,23/02/2012,99230,657.00,It Talent Solutions Ltd,CR482676,Network Services,I C T Services,731
http://statistics.data.gov.uk/id/local-authority/12UE,Huntingdonshire District Council,23/02/2012,99024,4437.10,Oracle Corporation Uk Ltd,CR400893,Network Services,Software,206
http://statistics.data.gov.uk/id/local-authority/12UE,Huntingdonshire District Council,02/02/2012,96853,468.00,Rittal Limited,CR417141,Network Services,Equipment Maintenance,511
http://statistics.data.gov.uk/id/local-authority/12UE,Huntingdonshire District Council,02/02/2012,97094,18900.00,Virgin Media Business,CR033120,Network Services,I T Line Rental,248
http://statistics.data.gov.uk/id/local-authority/12UE,Huntingdonshire District Council,02/02/2012,97097,1530.00,Virgin Media Business,CR033120,Network Services,I T Line Rental,248
http://statistics.data.gov.uk/id/local-authority/12UE,Huntingdonshire District Council,02/02/2012,96548,2332.78,Virgin Media Business,CR033120,Network Services,I T Line Rental,248
http://statistics.data.gov.uk/id/local-authority/12UE,Huntingdonshire District Council,02/02/2012,96551,15.60,Virgin Media Business,CR033120,Network Services,I T Line Rental,248
http://statistics.data.gov.uk/id/local-authority/12UE,Huntingdonshire District Council,02/02/2012,96548,685.55,Virgin Media Business,CR033120,Network Services,Telephone Charges,240
http://statistics.data.gov.uk/id/local-authority/12UE,Huntingdonshire District Council,02/02/2012,96551,1.68,Virgin Media Business,CR033120,Network Services,Telephone Charges,240
http://statistics.data.gov.uk/id/local-authority/12UE,Huntingdonshire District Council,16/02/2012,97657,189.29,Vodafone Limited,CR029120,Network Services,Mobile Telephones & Radios,241
http://statistics.data.gov.uk/id/local-authority/12UE,Huntingdonshire District Council,16/02/2012,97568,421.20,Campbell Associates,CR407137,Nuisances,Software,206
http://statistics.data.gov.uk/id/local-authority/12UE,Huntingdonshire District Council,22/02/2012,99283,156000.00,Sat Sun & Alternative Technology Ltd,CR453889,Offices Capital,Building Alterations,301
http://statistics.data.gov.uk/id/local-authority/12UE,Huntingdonshire District Council,02/02/2012,96710,549.60,Activ Security,CR409710,One Leisure Huntingdon,Security,450
http://statistics.data.gov.uk/id/local-authority/12UE,Huntingdonshire District Council,02/02/2012,96712,717.60,Activ Security,CR409710,One Leisure Huntingdon,Security,450
http://statistics.data.gov.uk/id/local-authority/12UE,Huntingdonshire District Council,02/02/2012,97638,2718.03,Anglian Water,CR000071,One Leisure Huntingdon,Sewerage,433
http://statistics.data.gov.uk/id/local-authority/12UE,Huntingdonshire District Council,02/02/2012,97639,103.30,Anglian Water,CR000071,One Leisure Huntingdon,Sewerage,433
http://statistics.data.gov.uk/id/local-authority/12UE,Huntingdonshire District Council,02/02/2012,97637,1944.99,Anglian Water,CR000071,One Leisure Huntingdon,Water,432
http://statistics.data.gov.uk/id/local-authority/12UE,Huntingdonshire District Council,02/02/2012,97638,2476.16,Anglian Water,CR000071,One Leisure Huntingdon,Water,432
http://statistics.data.gov.uk/id/local-authority/12UE,Huntingdonshire District Council,02/02/2012,97639,1999.43,Anglian Water,CR000071,One Leisure Huntingdon,Water,432
http://statistics.data.gov.uk/id/local-authority/12UE,Huntingdonshire District Council,23/02/2012,99402,48.12,Biffa Waste Services Ltd,CR416469,One Leisure Huntingdon,Waste Disposal,763
http://statistics.data.gov.uk/id/local-authority/12UE,Huntingdonshire District Council,23/02/2012,99403,96.00,Biffa Waste Services Ltd,CR416469,One Leisure Huntingdon,Waste Disposal,763
http://statistics.data.gov.uk/id/local-authority/12UE,Huntingdonshire District Council,23/02/2012,99405,5.04,Biffa Waste Services Ltd,CR416469,One Leisure Huntingdon,Waste Disposal,763
http://statistics.data.gov.uk/id/local-authority/12UE,Huntingdonshire District Council,23/02/2012,99368,16.80,Booker Cash And Carry,CR027611,One Leisure Huntingdon,Bar Provisions,558
http://statistics.data.gov.uk/id/local-authority/12UE,Huntingdonshire District Council,23/02/2012,99370,8.40,Booker Cash And Carry,CR027611,One Leisure Huntingdon,Bar Provisions,558
http://statistics.data.gov.uk/id/local-authority/12UE,Huntingdonshire District Council,23/02/2012,99368,104.41,Booker Cash And Carry,CR027611,One Leisure Huntingdon,Catering Materials,559
http://statistics.data.gov.uk/id/local-authority/12UE,Huntingdonshire District Council,23/02/2012,99370,89.04,Booker Cash And Carry,CR027611,One Leisure Huntingdon,Catering Materials,559
http://statistics.data.gov.uk/id/local-authority/12UE,Huntingdonshire District Council,23/02/2012,99368,287.57,Booker Cash And Carry,CR027611,One Leisure Huntingdon,Confectionery,572
http://statistics.data.gov.uk/id/local-authority/12UE,Huntingdonshire District Council,23/02/2012,99370,184.15,Booker Cash And Carry,CR027611,One Leisure Huntingdon,Confectionery,572
http://statistics.data.gov.uk/id/local-authority/12UE,Huntingdonshire District Council,23/02/2012,99308,74.35,Booker Cash And Carry,CR027611,One Leisure Huntingdon,Vending Materials,560
http://statistics.data.gov.uk/id/local-authority/12UE,Huntingdonshire District Council,23/02/2012,99310,504.26,Booker Cash And Carry,CR027611,One Leisure Huntingdon,Vending Materials,560
http://statistics.data.gov.uk/id/local-authority/12UE,Huntingdonshire District Council,23/02/2012,99311,183.72,Booker Cash And Carry,CR027611,One Leisure Huntingdon,Vending Materials,560
http://statistics.data.gov.uk/id/local-authority/12UE,Huntingdonshire District Council,23/02/2012,99312,367.43,Booker Cash And Carry,CR027611,One Leisure Huntingdon,Vending Materials,560
http://statistics.data.gov.uk/id/local-authority/12UE,Huntingdonshire District Council,02/02/2012,96714,1233.50,Chris Robinson T/A Cr Design,CR416482,One Leisure Huntingdon,Gen Building Mtce - Responsive,303
http://statistics.data.gov.uk/id/local-authority/12UE,Huntingdonshire District Council,16/02/2012,97733,181.00,Clanpress King'S Lynn Ltd,CR413516,One Leisure Huntingdon,Printing (External),220
http://statistics.data.gov.uk/id/local-authority/12UE,Huntingdonshire District Council,02/02/2012,96728,127.94,E A Ellison,CR480861,One Leisure Huntingdon,Materials,550
http://statistics.data.gov.uk/id/local-authority/12UE,Huntingdonshire District Council,09/02/2012,97579,98.85,Ease Of Supply Ltd,CR480405,One Leisure Huntingdon,Catering Materials,559
http://statistics.data.gov.uk/id/local-authority/12UE,Huntingdonshire District Council,23/02/2012,99418,24.00,Ecocleen Services Limited,CR406985,One Leisure Huntingdon,Subcontractors,777
http://statistics.data.gov.uk/id/local-authority/12UE,Huntingdonshire District Council,23/02/2012,99419,1380.92,Ecocleen Services Limited,CR406985,One Leisure Huntingdon,Subcontractors,777
http://statistics.data.gov.uk/id/local-authority/12UE,Huntingdonshire District Council,02/02/2012,96535,312.00,Environ Uk Limited,CR480369,One Leisure Huntingdon,Consultants,711
http://statistics.data.gov.uk/id/local-authority/12UE,Huntingdonshire District Council,16/02/2012,98812,5710.09,E-On Energy,CR416430,One Leisure Huntingdon,Electricity,420
http://statistics.data.gov.uk/id/local-authority/12UE,Huntingdonshire District Council,23/02/2012,99394,198.41,Fitpro Business,CR025826,One Leisure Huntingdon,Licences,730
http://statistics.data.gov.uk/id/local-authority/12UE,Huntingdonshire District Council,09/02/2012,97584,813.24,Glaxosmithkline,CR010424,One Leisure Huntingdon,Vending Materials,560
http://statistics.data.gov.uk/id/local-authority/12UE,Huntingdonshire District Council,09/02/2012,97328,218.69,Hedley Solutions Ltd,CR026816,One Leisure Huntingdon,Other Office Equipment,209
http://statistics.data.gov.uk/id/local-authority/12UE,Huntingdonshire District Council,23/02/2012,99339,27.59,Histon Produce Co Ltd,CR033268,One Leisure Huntingdon,Catering Materials,559
http://statistics.data.gov.uk/id/local-authority/12UE,Huntingdonshire District Council,02/02/2012,96810,16.14,Histon Produce Co Ltd,CR033268,One Leisure Huntingdon,Catering Materials,559
http://statistics.data.gov.uk/id/local-authority/12UE,Huntingdonshire District Council,09/02/2012,97573,23.01,Histon Produce Co Ltd,CR033268,One Leisure Huntingdon,Catering Materials,559
http://statistics.data.gov.uk/id/local-authority/12UE,Huntingdonshire District Council,02/02/2012,96773,148.59,Hopwells Limited,CR003583,One Leisure Huntingdon,Catering Materials,559
http://statistics.data.gov.uk/id/local-authority/12UE,Huntingdonshire District Council,23/02/2012,98562,68.04,Hopwells Ltd,CR097542,One Leisure Huntingdon,Catering Materials,559
http://statistics.data.gov.uk/id/local-authority/12UE,Huntingdonshire District Council,23/02/2012,98563,111.23,Hopwells Ltd,CR097542,One Leisure Huntingdon,Catering Materials,559
http://statistics.data.gov.uk/id/local-authority/12UE,Huntingdonshire District Council,16/02/2012,98573,148.20,Hytrac Lifts Ltd,CR030618,One Leisure Huntingdon,Plant & Equipment Maintenance,380
http://statistics.data.gov.uk/id/local-authority/12UE,Huntingdonshire District Council,16/02/2012,98574,360.13,Hytrac Lifts Ltd,CR030618,One Leisure Huntingdon,Plant & Equipment Maintenance,380
http://statistics.data.gov.uk/id/local-authority/12UE,Huntingdonshire District Council,16/02/2012,98990,746.58,Itab Shop Products Uk Ltd,CR453885,One Leisure Huntingdon,Gen Building Mtce - Responsive,303
http://statistics.data.gov.uk/id/local-authority/12UE,Huntingdonshire District Council,16/02/2012,98577,7.01,Jewson,CR000455,One Leisure Huntingdon,Gen Building Mtce - Planned,304
http://statistics.data.gov.uk/id/local-authority/12UE,Huntingdonshire District Council,02/02/2012,97611,3.00,Jewson,CR000455,One Leisure Huntingdon,Gen Building Mtce - Planned,304
http://statistics.data.gov.uk/id/local-authority/12UE,Huntingdonshire District Council,16/02/2012,98578,45.54,Jewson,CR000455,One Leisure Huntingdon,Gen Building Mtce - Responsive,303
http://statistics.data.gov.uk/id/local-authority/12UE,Huntingdonshire District Council,09/02/2012,97572,31.21,Ken Booth & Co,CR000305,One Leisure Huntingdon,Cleaning Materials,443
http://statistics.data.gov.uk/id/local-authority/12UE,Huntingdonshire District Council,09/02/2012,97572,154.48,Ken Booth & Co,CR000305,One Leisure Huntingdon,Materials,550
http://statistics.data.gov.uk/id/local-authority/12UE,Huntingdonshire District Council,23/02/2012,99365,71.85,King Bros,CR411339,One Leisure Huntingdon,Bar Provisions,558
http://statistics.data.gov.uk/id/local-authority/12UE,Huntingdonshire District Council,02/02/2012,96798,48.96,King Bros,CR411339,One Leisure Huntingdon,Bar Provisions,558
http://statistics.data.gov.uk/id/local-authority/12UE,Huntingdonshire District Council,02/02/2012,96799,14.73,King Bros,CR411339,One Leisure Huntingdon,Bar Provisions,558
http://statistics.data.gov.uk/id/local-authority/12UE,Huntingdonshire District Council,09/02/2012,97570,65.13,King Bros,CR411339,One Leisure Huntingdon,Bar Provisions,558
http://statistics.data.gov.uk/id/local-authority/12UE,Huntingdonshire District Council,16/02/2012,97567,32.64,King Bros,CR411339,One Leisure Huntingdon,Bar Provisions,558
http://statistics.data.gov.uk/id/local-authority/12UE,Huntingdonshire District Council,23/02/2012,99365,116.58,King Bros,CR411339,One Leisure Huntingdon,Catering Materials,559
http://statistics.data.gov.uk/id/local-authority/12UE,Huntingdonshire District Council,02/02/2012,96798,26.66,King Bros,CR411339,One Leisure Huntingdon,Catering Materials,559
http://statistics.data.gov.uk/id/local-authority/12UE,Huntingdonshire District Council,02/02/2012,96799,98.33,King Bros,CR411339,One Leisure Huntingdon,Catering Materials,559
http://statistics.data.gov.uk/id/local-authority/12UE,Huntingdonshire District Council,09/02/2012,97570,38.38,King Bros,CR411339,One Leisure Huntingdon,Catering Materials,559
http://statistics.data.gov.uk/id/local-authority/12UE,Huntingdonshire District Council,16/02/2012,97567,79.78,King Bros,CR411339,One Leisure Huntingdon,Catering Materials,559
http://statistics.data.gov.uk/id/local-authority/12UE,Huntingdonshire District Council,23/02/2012,99363,-12.99,King Bros,CR411339,One Leisure Huntingdon,Confectionery,572
http://statistics.data.gov.uk/id/local-authority/12UE,Huntingdonshire District Council,09/02/2012,97570,20.16,King Bros,CR411339,One Leisure Huntingdon,Confectionery,572
http://statistics.data.gov.uk/id/local-authority/12UE,Huntingdonshire District Council,02/02/2012,96724,17.94,Konica Minolta Business Solutions East Ltd,CR478866,One Leisure Huntingdon,Other Office Equipment,209
http://statistics.data.gov.uk/id/local-authority/12UE,Huntingdonshire District Council,23/02/2012,99386,501.82,Maskearaid Ind Supplies,CR033423,One Leisure Huntingdon,Cleaning Materials,443
http://statistics.data.gov.uk/id/local-authority/12UE,Huntingdonshire District Council,23/02/2012,99384,178.80,Maskearaid Ind Supplies,CR033423,One Leisure Huntingdon,Stationery,225
http://statistics.data.gov.uk/id/local-authority/12UE,Huntingdonshire District Council,23/02/2012,99408,126.00,Neopost Ltd,CR408342,One Leisure Huntingdon,Other Office Equipment,209
http://statistics.data.gov.uk/id/local-authority/12UE,Huntingdonshire District Council,02/02/2012,96720,196.20,Physical Company,CR407014,One Leisure Huntingdon,Equipment Purchases,500
http://statistics.data.gov.uk/id/local-authority/12UE,Huntingdonshire District Council,23/02/2012,99390,103.92,Roger Wilson Electronics,CR028041,One Leisure Huntingdon,Gen Building Mtce - Planned,304
http://statistics.data.gov.uk/id/local-authority/12UE,Huntingdonshire District Council,16/02/2012,97629,435.57,Roger Wilson Electronics,CR028041,One Leisure Huntingdon,Gen Building Mtce - Responsive,303
http://statistics.data.gov.uk/id/local-authority/12UE,Huntingdonshire District Council,23/02/2012,99420,137.41,Saxon Paper,CR003696,One Leisure Huntingdon,Stationery,225
http://statistics.data.gov.uk/id/local-authority/12UE,Huntingdonshire District Council,16/02/2012,98453,60.00,Semco Signs Ltd,CR083202,One Leisure Huntingdon,Advertising/Promoting Services,255
http://statistics.data.gov.uk/id/local-authority/12UE,Huntingdonshire District Council,23/02/2012,99333,74.01,South Lincs Food Service,CR033415,One Leisure Huntingdon,Bar Provisions,558
http://statistics.data.gov.uk/id/local-authority/12UE,Huntingdonshire District Council,02/02/2012,96785,45.43,South Lincs Food Service,CR033415,One Leisure Huntingdon,Bar Provisions,558
http://statistics.data.gov.uk/id/local-authority/12UE,Huntingdonshire District Council,23/02/2012,99333,131.93,South Lincs Food Service,CR033415,One Leisure Huntingdon,Catering Materials,559
http://statistics.data.gov.uk/id/local-authority/12UE,Huntingdonshire District Council,02/02/2012,96785,142.26,South Lincs Food Service,CR033415,One Leisure Huntingdon,Catering Materials,559
http://statistics.data.gov.uk/id/local-authority/12UE,Huntingdonshire District Council,23/02/2012,99333,78.16,South Lincs Food Service,CR033415,One Leisure Huntingdon,Materials,550
http://statistics.data.gov.uk/id/local-authority/12UE,Huntingdonshire District Council,23/02/2012,99416,270.00,Startac,CR429227,One Leisure Huntingdon,Equipment Maintenance,511
http://statistics.data.gov.uk/id/local-authority/12UE,Huntingdonshire District Council,23/02/2012,99417,33.00,Stuart Lighting Ltd,CR033200,One Leisure Huntingdon,Gen Building Mtce - Planned,304
http://statistics.data.gov.uk/id/local-authority/12UE,Huntingdonshire District Council,02/02/2012,97488,40.46,T N T Post Midlands Ltd,CR479965,One Leisure Huntingdon,Postage,231
http://statistics.data.gov.uk/id/local-authority/12UE,Huntingdonshire District Council,02/02/2012,96548,1.06,Virgin Media Business,CR033120,One Leisure Huntingdon,Telephone Charges,240
http://statistics.data.gov.uk/id/local-authority/12UE,Huntingdonshire District Council,16/02/2012,97657,79.55,Vodafone Limited,CR029120,One Leisure Huntingdon,Mobile Telephones & Radios,241
http://statistics.data.gov.uk/id/local-authority/12UE,Huntingdonshire District Council,16/02/2012,98125,96.84,Anglian Chemicals Ltd,CR401515,One Leisure Ramsey,Cleaning Materials,443
http://statistics.data.gov.uk/id/local-authority/12UE,Huntingdonshire District Council,02/02/2012,96597,1170.00,Artificial Grass Maintenance Ltd,CR487264,One Leisure Ramsey,Grounds Mtce Contractors,351
http://statistics.data.gov.uk/id/local-authority/12UE,Huntingdonshire District Council,16/02/2012,98072,930.00,Artificial Grass Maintenance Ltd,CR487264,One Leisure Ramsey,Grounds Mtce Contractors,351
http://statistics.data.gov.uk/id/local-authority/12UE,Huntingdonshire District Council,23/02/2012,99043,88.32,Biffa Waste Services Ltd,CR416469,One Leisure Ramsey,Waste Disposal,763
http://statistics.data.gov.uk/id/local-authority/12UE,Huntingdonshire District Council,16/02/2012,97731,155.00,Clanpress King'S Lynn Ltd,CR413516,One Leisure Ramsey,Printing (External),220
http://statistics.data.gov.uk/id/local-authority/12UE,Huntingdonshire District Council,23/02/2012,99040,821.81,Ecocleen Services Limited,CR406985,One Leisure Ramsey,Gen Building Mtce - Planned,304
http://statistics.data.gov.uk/id/local-authority/12UE,Huntingdonshire District Council,02/02/2012,96535,312.00,Environ Uk Limited,CR480369,One Leisure Ramsey,Consultants,711
http://statistics.data.gov.uk/id/local-authority/12UE,Huntingdonshire District Council,16/02/2012,98073,221.08,Glaxosmithkline,CR010424,One Leisure Ramsey,Vending Materials,560
http://statistics.data.gov.uk/id/local-authority/12UE,Huntingdonshire District Council,23/02/2012,99042,144.18,Glaxosmithkline,CR010424,One Leisure Ramsey,Vending Materials,560
http://statistics.data.gov.uk/id/local-authority/12UE,Huntingdonshire District Council,16/02/2012,98131,265.56,J P Lennard Ltd,CR028595,One Leisure Ramsey,Equipment Purchases,500
http://statistics.data.gov.uk/id/local-authority/12UE,Huntingdonshire District Council,23/02/2012,99048,126.00,Neopost Ltd,CR408342,One Leisure Ramsey,Postage,231
http://statistics.data.gov.uk/id/local-authority/12UE,Huntingdonshire District Council,09/02/2012,97162,250.00,Pb Leaflet Distibution,CR482495,One Leisure Ramsey,Advertising/Promoting Services,255
http://statistics.data.gov.uk/id/local-authority/12UE,Huntingdonshire District Council,23/02/2012,98132,1560.00,R S Air Conditioning Ltd,CR478470,One Leisure Ramsey,Plant & Equipment Maintenance,380
http://statistics.data.gov.uk/id/local-authority/12UE,Huntingdonshire District Council,16/02/2012,98127,262.69,Roger Wilson Electronics,CR028041,One Leisure Ramsey,Gen Building Mtce - Responsive,303
http://statistics.data.gov.uk/id/local-authority/12UE,Huntingdonshire District Council,16/02/2012,98453,60.00,Semco Signs Ltd,CR083202,One Leisure Ramsey,Advertising/Promoting Services,255
http://statistics.data.gov.uk/id/local-authority/12UE,Huntingdonshire District Council,02/02/2012,98133,3426.00,Technogym Uk Ltd,CR033037,One Leisure Ramsey,Equipment Maintenance,511
http://statistics.data.gov.uk/id/local-authority/12UE,Huntingdonshire District Council,02/02/2012,97096,15.60,Virgin Media Business,CR033120,One Leisure Ramsey,I T Line Rental,248
http://statistics.data.gov.uk/id/local-authority/12UE,Huntingdonshire District Council,02/02/2012,97096,23.08,Virgin Media Business,CR033120,One Leisure Ramsey,Telephone Charges,240
http://statistics.data.gov.uk/id/local-authority/12UE,Huntingdonshire District Council,16/02/2012,98126,30.00,Warboys Community Association,CR405714,One Leisure Ramsey,Advertising/Promoting Services,255
http://statistics.data.gov.uk/id/local-authority/12UE,Huntingdonshire District Council,02/02/2012,96326,80.00,Adlington'S,CR412033,One Leisure Sawtry,Gen Building Mtce - Planned,304
http://statistics.data.gov.uk/id/local-authority/12UE,Huntingdonshire District Council,09/02/2012,97331,44.40,Anglian Chemicals Ltd,CR401515,One Leisure Sawtry,Cleaning Materials,443
http://statistics.data.gov.uk/id/local-authority/12UE,Huntingdonshire District Council,09/02/2012,528518,1637.32,Anglian Water,CR000071,One Leisure Sawtry,Sewerage,433
http://statistics.data.gov.uk/id/local-authority/12UE,Huntingdonshire District Council,23/02/2012,98361,38.16,Biffa Waste Services Ltd,CR416469,One Leisure Sawtry,Waste Disposal,763
http://statistics.data.gov.uk/id/local-authority/12UE,Huntingdonshire District Council,09/02/2012,97962,516.55,Booker Cash And Carry,CR027611,One Leisure Sawtry,Vending Materials,560
http://statistics.data.gov.uk/id/local-authority/12UE,Huntingdonshire District Council,16/02/2012,97737,116.40,Clanpress King'S Lynn Ltd,CR413516,One Leisure Sawtry,Printing (External),220
http://statistics.data.gov.uk/id/local-authority/12UE,Huntingdonshire District Council,09/02/2012,98592,568.13,Ecocleen Services Limited,CR406985,One Leisure Sawtry,Gen Building Mtce - Planned,304
http://statistics.data.gov.uk/id/local-authority/12UE,Huntingdonshire District Council,02/02/2012,96535,312.00,Environ Uk Limited,CR480369,One Leisure Sawtry,Consultants,711
http://statistics.data.gov.uk/id/local-authority/12UE,Huntingdonshire District Council,02/02/2012,96325,164.76,Inflatable Testing & Repairing Services Ltd,CR410226,One Leisure Sawtry,Equipment Hire,507
http://statistics.data.gov.uk/id/local-authority/12UE,Huntingdonshire District Council,09/02/2012,97585,68.21,Initial Washroom Solutions,CR416072,One Leisure Sawtry,Fixtures & Fittings,379
http://statistics.data.gov.uk/id/local-authority/12UE,Huntingdonshire District Council,02/02/2012,96657,26.52,J P Lennard Ltd,CR028595,One Leisure Sawtry,Gen Building Mtce - Responsive,303
http://statistics.data.gov.uk/id/local-authority/12UE,Huntingdonshire District Council,16/02/2012,97966,1010.18,Kershaw Mechanical Services Ltd,CR480268,One Leisure Sawtry,Gen Building Mtce - Responsive,303
http://statistics.data.gov.uk/id/local-authority/12UE,Huntingdonshire District Council,02/02/2012,96655,147.92,Konica Minolta Business Solutions East Ltd,CR478866,One Leisure Sawtry,Other Office Equipment,209
http://statistics.data.gov.uk/id/local-authority/12UE,Huntingdonshire District Council,16/02/2012,98959,840.00,Kubik Installations,CR404967,One Leisure Sawtry,Plant & Equipment Maintenance,380
http://statistics.data.gov.uk/id/local-authority/12UE,Huntingdonshire District Council,02/02/2012,96525,6.98,Lyreco Uk Ltd,CR400700,One Leisure Sawtry,Materials,550
http://statistics.data.gov.uk/id/local-authority/12UE,Huntingdonshire District Council,16/02/2012,97504,10.12,Lyreco Uk Ltd,CR400700,One Leisure Sawtry,Stationery,225
http://statistics.data.gov.uk/id/local-authority/12UE,Huntingdonshire District Council,09/02/2012,97322,1560.00,R S Air Conditioning Ltd,CR478470,One Leisure Sawtry,Gen Building Mtce - Planned,304
http://statistics.data.gov.uk/id/local-authority/12UE,Huntingdonshire District Council,02/02/2012,96659,140.00,Sawtry Community College,CR021008,One Leisure Sawtry,Hire Of Rooms,411
http://statistics.data.gov.uk/id/local-authority/12UE,Huntingdonshire District Council,02/02/2012,97473,787.93,Stanair Industrial Door Services Ltd,CR403493,One Leisure Sawtry,Gen Building Mtce - Responsive,303
http://statistics.data.gov.uk/id/local-authority/12UE,Huntingdonshire District Council,23/02/2012,99309,240.00,Abbey Stocktaking Services,CR405345,One Leisure St Ives,Stock Control,758
http://statistics.data.gov.uk/id/local-authority/12UE,Huntingdonshire District Council,02/02/2012,96620,182.40,Abel Alarm Company Ltd,CR000201,One Leisure St Ives,Security,450
http://statistics.data.gov.uk/id/local-authority/12UE,Huntingdonshire District Council,02/02/2012,96622,108.00,Abel Alarm Company Ltd,CR000201,One Leisure St Ives,Security,450
http://statistics.data.gov.uk/id/local-authority/12UE,Huntingdonshire District Council,23/02/2012,99325,233.10,Affinity Nationwide Support Services,CR482612,One Leisure St Ives,Hired Staff,100
http://statistics.data.gov.uk/id/local-authority/12UE,Huntingdonshire District Council,02/02/2012,97944,555.00,Affinity Nationwide Support Services,CR482612,One Leisure St Ives,Hired Staff,100
http://statistics.data.gov.uk/id/local-authority/12UE,Huntingdonshire District Council,02/02/2012,97945,266.40,Affinity Nationwide Support Services,CR482612,One Leisure St Ives,Hired Staff,100
http://statistics.data.gov.uk/id/local-authority/12UE,Huntingdonshire District Council,02/02/2012,97946,777.00,Affinity Nationwide Support Services,CR482612,One Leisure St Ives,Hired Staff,100
http://statistics.data.gov.uk/id/local-authority/12UE,Huntingdonshire District Council,16/02/2012,98657,277.50,Affinity Nationwide Support Services,CR482612,One Leisure St Ives,Hired Staff,100
http://statistics.data.gov.uk/id/local-authority/12UE,Huntingdonshire District Council,23/02/2012,99342,333.22,Air Products Plc,CR029169,One Leisure St Ives,Gas Cylinders (Incl. Bars),567
http://statistics.data.gov.uk/id/local-authority/12UE,Huntingdonshire District Council,23/02/2012,99344,503.14,Air Products Plc,CR029169,One Leisure St Ives,Gas Cylinders (Incl. Bars),567
http://statistics.data.gov.uk/id/local-authority/12UE,Huntingdonshire District Council,02/02/2012,97774,143.22,Air Products Plc,CR029169,One Leisure St Ives,Gas Cylinders (Incl. Bars),567
http://statistics.data.gov.uk/id/local-authority/12UE,Huntingdonshire District Council,02/02/2012,97775,441.94,Air Products Plc,CR029169,One Leisure St Ives,Gas Cylinders (Incl. Bars),567
http://statistics.data.gov.uk/id/local-authority/12UE,Huntingdonshire District Council,23/02/2012,99346,-34.87,Aos,CR406269,One Leisure St Ives,Stationery,225
http://statistics.data.gov.uk/id/local-authority/12UE,Huntingdonshire District Council,23/02/2012,98899,71.82,Archant Herts & Cambs,CR415764,One Leisure St Ives,Advertising/Promoting Services,255
http://statistics.data.gov.uk/id/local-authority/12UE,Huntingdonshire District Council,23/02/2012,99518,66.73,Baker Ross Limited,CR411619,One Leisure St Ives,Materials,550
http://statistics.data.gov.uk/id/local-authority/12UE,Huntingdonshire District Council,23/02/2012,98641,2.52,Biffa Waste Services Ltd,CR000376,One Leisure St Ives,Waste Disposal,763
http://statistics.data.gov.uk/id/local-authority/12UE,Huntingdonshire District Council,23/02/2012,98642,384.00,Biffa Waste Services Ltd,CR000376,One Leisure St Ives,Waste Disposal,763
http://statistics.data.gov.uk/id/local-authority/12UE,Huntingdonshire District Council,23/02/2012,98645,48.12,Biffa Waste Services Ltd,CR000376,One Leisure St Ives,Waste Disposal,763
http://statistics.data.gov.uk/id/local-authority/12UE,Huntingdonshire District Council,23/02/2012,98647,110.50,Biffa Waste Services Ltd,CR000376,One Leisure St Ives,Waste Disposal,763
http://statistics.data.gov.uk/id/local-authority/12UE,Huntingdonshire District Council,16/02/2012,98455,168.00,Bigprinting,CR416383,One Leisure St Ives,Printing (External),220
http://statistics.data.gov.uk/id/local-authority/12UE,Huntingdonshire District Council,16/02/2012,98457,129.60,Bigprinting,CR416383,One Leisure St Ives,Printing (External),220
http://statistics.data.gov.uk/id/local-authority/12UE,Huntingdonshire District Council,16/02/2012,98011,170.88,Bob Hopper & Co,CR003312,One Leisure St Ives,Gen Building Mtce - Responsive,303
http://statistics.data.gov.uk/id/local-authority/12UE,Huntingdonshire District Council,02/02/2012,97757,25.52,Booker Cash And Carry,CR027611,One Leisure St Ives,Bar Provisions,558
http://statistics.data.gov.uk/id/local-authority/12UE,Huntingdonshire District Council,02/02/2012,97759,12.56,Booker Cash And Carry,CR027611,One Leisure St Ives,Bar Provisions,558
http://statistics.data.gov.uk/id/local-authority/12UE,Huntingdonshire District Council,09/02/2012,98080,1606.54,Booker Cash And Carry,CR027611,One Leisure St Ives,Bar Provisions,558
http://statistics.data.gov.uk/id/local-authority/12UE,Huntingdonshire District Council,23/02/2012,98635,326.82,Booker Cash And Carry,CR027611,One Leisure St Ives,Bar Provisions,558
http://statistics.data.gov.uk/id/local-authority/12UE,Huntingdonshire District Council,09/02/2012,97997,218.76,Booker Cash And Carry,CR027611,One Leisure St Ives,Bar Provisions,558
http://statistics.data.gov.uk/id/local-authority/12UE,Huntingdonshire District Council,09/02/2012,98029,573.90,Booker Cash And Carry,CR027611,One Leisure St Ives,Bar Provisions,558
http://statistics.data.gov.uk/id/local-authority/12UE,Huntingdonshire District Council,16/02/2012,98631,356.56,Booker Cash And Carry,CR027611,One Leisure St Ives,Bar Provisions,558
http://statistics.data.gov.uk/id/local-authority/12UE,Huntingdonshire District Council,09/02/2012,98033,503.42,Booker Cash And Carry,CR027611,One Leisure St Ives,Bar Provisions,558
http://statistics.data.gov.uk/id/local-authority/12UE,Huntingdonshire District Council,02/02/2012,97756,60.62,Booker Cash And Carry,CR027611,One Leisure St Ives,Catering Materials,559
http://statistics.data.gov.uk/id/local-authority/12UE,Huntingdonshire District Council,02/02/2012,97757,64.61,Booker Cash And Carry,CR027611,One Leisure St Ives,Catering Materials,559
http://statistics.data.gov.uk/id/local-authority/12UE,Huntingdonshire District Council,02/02/2012,97758,21.91,Booker Cash And Carry,CR027611,One Leisure St Ives,Catering Materials,559
http://statistics.data.gov.uk/id/local-authority/12UE,Huntingdonshire District Council,02/02/2012,97759,65.00,Booker Cash And Carry,CR027611,One Leisure St Ives,Catering Materials,559
http://statistics.data.gov.uk/id/local-authority/12UE,Huntingdonshire District Council,02/02/2012,97760,7.12,Booker Cash And Carry,CR027611,One Leisure St Ives,Catering Materials,559
http://statistics.data.gov.uk/id/local-authority/12UE,Huntingdonshire District Council,09/02/2012,98079,328.74,Booker Cash And Carry,CR027611,One Leisure St Ives,Catering Materials,559
http://statistics.data.gov.uk/id/local-authority/12UE,Huntingdonshire District Council,09/02/2012,98080,133.09,Booker Cash And Carry,CR027611,One Leisure St Ives,Catering Materials,559
http://statistics.data.gov.uk/id/local-authority/12UE,Huntingdonshire District Council,16/02/2012,98633,6.36,Booker Cash And Carry,CR027611,One Leisure St Ives,Catering Materials,559
http://statistics.data.gov.uk/id/local-authority/12UE,Huntingdonshire District Council,23/02/2012,98635,22.98,Booker Cash And Carry,CR027611,One Leisure St Ives,Catering Materials,559
http://statistics.data.gov.uk/id/local-authority/12UE,Huntingdonshire District Council,09/02/2012,97997,43.96,Booker Cash And Carry,CR027611,One Leisure St Ives,Catering Materials,559
http://statistics.data.gov.uk/id/local-authority/12UE,Huntingdonshire District Council,09/02/2012,98029,5.25,Booker Cash And Carry,CR027611,One Leisure St Ives,Catering Materials,559
http://statistics.data.gov.uk/id/local-authority/12UE,Huntingdonshire District Council,16/02/2012,98631,5.25,Booker Cash And Carry,CR027611,One Leisure St Ives,Catering Materials,559
http://statistics.data.gov.uk/id/local-authority/12UE,Huntingdonshire District Council,09/02/2012,98033,9.48,Booker Cash And Carry,CR027611,One Leisure St Ives,Catering Materials,559
http://statistics.data.gov.uk/id/local-authority/12UE,Huntingdonshire District Council,02/02/2012,97763,15.32,Booker Cash And Carry,CR027611,One Leisure St Ives,Cleaning Materials,443
http://statistics.data.gov.uk/id/local-authority/12UE,Huntingdonshire District Council,23/02/2012,98635,69.54,Booker Cash And Carry,CR027611,One Leisure St Ives,Cleaning Materials,443
http://statistics.data.gov.uk/id/local-authority/12UE,Huntingdonshire District Council,09/02/2012,98029,20.18,Booker Cash And Carry,CR027611,One Leisure St Ives,Cleaning Materials,443
http://statistics.data.gov.uk/id/local-authority/12UE,Huntingdonshire District Council,02/02/2012,97756,140.80,Booker Cash And Carry,CR027611,One Leisure St Ives,Confectionery,572
http://statistics.data.gov.uk/id/local-authority/12UE,Huntingdonshire District Council,02/02/2012,97758,73.68,Booker Cash And Carry,CR027611,One Leisure St Ives,Confectionery,572
http://statistics.data.gov.uk/id/local-authority/12UE,Huntingdonshire District Council,02/02/2012,97759,218.96,Booker Cash And Carry,CR027611,One Leisure St Ives,Confectionery,572
http://statistics.data.gov.uk/id/local-authority/12UE,Huntingdonshire District Council,09/02/2012,98080,4.69,Booker Cash And Carry,CR027611,One Leisure St Ives,Confectionery,572
http://statistics.data.gov.uk/id/local-authority/12UE,Huntingdonshire District Council,23/02/2012,98635,202.30,Booker Cash And Carry,CR027611,One Leisure St Ives,Confectionery,572
http://statistics.data.gov.uk/id/local-authority/12UE,Huntingdonshire District Council,09/02/2012,97997,258.56,Booker Cash And Carry,CR027611,One Leisure St Ives,Confectionery,572
http://statistics.data.gov.uk/id/local-authority/12UE,Huntingdonshire District Council,16/02/2012,98631,25.42,Booker Cash And Carry,CR027611,One Leisure St Ives,Confectionery,572
http://statistics.data.gov.uk/id/local-authority/12UE,Huntingdonshire District Council,02/02/2012,97757,20.98,Booker Cash And Carry,CR027611,One Leisure St Ives,Materials,550
http://statistics.data.gov.uk/id/local-authority/12UE,Huntingdonshire District Council,02/02/2012,97759,6.84,Booker Cash And Carry,CR027611,One Leisure St Ives,Materials,550
http://statistics.data.gov.uk/id/local-authority/12UE,Huntingdonshire District Council,02/02/2012,97763,61.02,Booker Cash And Carry,CR027611,One Leisure St Ives,Materials,550
http://statistics.data.gov.uk/id/local-authority/12UE,Huntingdonshire District Council,23/02/2012,98635,20.39,Booker Cash And Carry,CR027611,One Leisure St Ives,Materials,550
http://statistics.data.gov.uk/id/local-authority/12UE,Huntingdonshire District Council,09/02/2012,97997,27.32,Booker Cash And Carry,CR027611,One Leisure St Ives,Materials,550
http://statistics.data.gov.uk/id/local-authority/12UE,Huntingdonshire District Council,16/02/2012,98631,9.06,Booker Cash And Carry,CR027611,One Leisure St Ives,Materials,550
http://statistics.data.gov.uk/id/local-authority/12UE,Huntingdonshire District Council,02/02/2012,97762,1383.40,Booker Cash And Carry,CR027611,One Leisure St Ives,Vending Materials,560
http://statistics.data.gov.uk/id/local-authority/12UE,Huntingdonshire District Council,16/02/2012,98633,1574.51,Booker Cash And Carry,CR027611,One Leisure St Ives,Vending Materials,560
http://statistics.data.gov.uk/id/local-authority/12UE,Huntingdonshire District Council,23/02/2012,98635,112.66,Booker Cash And Carry,CR027611,One Leisure St Ives,Vending Materials,560
http://statistics.data.gov.uk/id/local-authority/12UE,Huntingdonshire District Council,09/02/2012,97997,92.77,Booker Cash And Carry,CR027611,One Leisure St Ives,Vending Materials,560
http://statistics.data.gov.uk/id/local-authority/12UE,Huntingdonshire District Council,02/02/2012,98009,970.60,Border Studio,CR402068,One Leisure St Ives,Materials,550
http://statistics.data.gov.uk/id/local-authority/12UE,Huntingdonshire District Council,16/02/2012,98912,576.00,Bsm Noble,CR477592,One Leisure St Ives,Consultants,711
http://statistics.data.gov.uk/id/local-authority/12UE,Huntingdonshire District Council,23/02/2012,98435,118.80,Cambridge Newspapers Ltd,CR410062,One Leisure St Ives,Advertising/Promoting Services,255
http://statistics.data.gov.uk/id/local-authority/12UE,Huntingdonshire District Council,23/02/2012,98438,58.46,Cambridge Newspapers Ltd,CR410062,One Leisure St Ives,Advertising/Promoting Services,255
http://statistics.data.gov.uk/id/local-authority/12UE,Huntingdonshire District Council,09/02/2012,98008,223.14,Carl Furrer Trampoline Promotions,CR40217,One Leisure St Ives,Equipment Maintenance,511
http://statistics.data.gov.uk/id/local-authority/12UE,Huntingdonshire District Council,09/02/2012,98019,121.00,Chris Robinson T/A Cr Design,CR416482,One Leisure St Ives,Gen Building Mtce - Responsive,303
http://statistics.data.gov.uk/id/local-authority/12UE,Huntingdonshire District Council,16/02/2012,97734,194.00,Clanpress King'S Lynn Ltd,CR413516,One Leisure St Ives,Printing (External),220
http://statistics.data.gov.uk/id/local-authority/12UE,Huntingdonshire District Council,16/02/2012,97736,396.00,Clanpress King'S Lynn Ltd,CR413516,One Leisure St Ives,Printing (External),220
http://statistics.data.gov.uk/id/local-authority/12UE,Huntingdonshire District Council,02/02/2012,97915,300.00,Dings Entertainment,CR412228,One Leisure St Ives,Entertainments Inc Cable Tv,744
http://statistics.data.gov.uk/id/local-authority/12UE,Huntingdonshire District Council,16/02/2012,98637,1750.19,Ecocleen Services Limited,CR406985,One Leisure St Ives,Building Cleaning Internal,440
http://statistics.data.gov.uk/id/local-authority/12UE,Huntingdonshire District Council,02/02/2012,96535,624.00,Environ Uk Limited,CR480369,One Leisure St Ives,Consultants,711
http://statistics.data.gov.uk/id/local-authority/12UE,Huntingdonshire District Council,16/02/2012,98976,10101.90,E-On Energy,CR416430,One Leisure St Ives,Electricity,420
http://statistics.data.gov.uk/id/local-authority/12UE,Huntingdonshire District Council,09/02/2012,97184,276.57,Fitpro Business,CR025826,One Leisure St Ives,Licences,730
http://statistics.data.gov.uk/id/local-authority/12UE,Huntingdonshire District Council,16/02/2012,98012,65.52,Garner Medical Ltd,CR003972,One Leisure St Ives,Equipment Maintenance,511
http://statistics.data.gov.uk/id/local-authority/12UE,Huntingdonshire District Council,23/02/2012,98981,428.40,Gladstone Mrm,CR405717,One Leisure St Ives,Equipment Purchases,500
http://statistics.data.gov.uk/id/local-authority/12UE,Huntingdonshire District Council,16/02/2012,97656,202.43,Glaxosmithkline,CR010424,One Leisure St Ives,Vending Materials,560
http://statistics.data.gov.uk/id/local-authority/12UE,Huntingdonshire District Council,09/02/2012,97179,727.39,Glaxosmithkline,CR010424,One Leisure St Ives,Vending Materials,560
http://statistics.data.gov.uk/id/local-authority/12UE,Huntingdonshire District Council,23/02/2012,99506,1811.90,Harlequin Costume Hire,CR006741,One Leisure St Ives,Materials,550
http://statistics.data.gov.uk/id/local-authority/12UE,Huntingdonshire District Council,23/02/2012,98634,294.88,Heineken Uk Ltd,CR032678,One Leisure St Ives,Bar Provisions,558
http://statistics.data.gov.uk/id/local-authority/12UE,Huntingdonshire District Council,02/02/2012,97754,939.16,Heineken Uk Ltd,CR032678,One Leisure St Ives,Bar Provisions,558
http://statistics.data.gov.uk/id/local-authority/12UE,Huntingdonshire District Council,02/02/2012,97766,39.30,Hopwells Ltd,CR097542,One Leisure St Ives,Catering Materials,559
http://statistics.data.gov.uk/id/local-authority/12UE,Huntingdonshire District Council,02/02/2012,97767,516.94,Hopwells Ltd,CR097542,One Leisure St Ives,Confectionery,572
http://statistics.data.gov.uk/id/local-authority/12UE,Huntingdonshire District Council,02/02/2012,97769,127.94,Hopwells Ltd,CR097542,One Leisure St Ives,Confectionery,572
http://statistics.data.gov.uk/id/local-authority/12UE,Huntingdonshire District Council,02/02/2012,97772,183.23,Hopwells Ltd,CR097542,One Leisure St Ives,Confectionery,572
http://statistics.data.gov.uk/id/local-authority/12UE,Huntingdonshire District Council,16/02/2012,98628,125.00,Institute Of Groundsmanship,CR413725,One Leisure St Ives,Training - Operational,131
http://statistics.data.gov.uk/id/local-authority/12UE,Huntingdonshire District Council,23/02/2012,99278,225.00,Iql Uk Ltd,CR415623,One Leisure St Ives,Training - Operational,131
http://statistics.data.gov.uk/id/local-authority/12UE,Huntingdonshire District Council,02/02/2012,97765,238.30,J P Lennard Ltd,CR028595,One Leisure St Ives,Sports Equipment,524
http://statistics.data.gov.uk/id/local-authority/12UE,Huntingdonshire District Council,23/02/2012,98983,108.00,Leisure Repair,CR403762,One Leisure St Ives,Gen Building Mtce - Responsive,303
http://statistics.data.gov.uk/id/local-authority/12UE,Huntingdonshire District Council,02/02/2012,98003,404.40,Maskearaid Ind Supplies,CR033423,One Leisure St Ives,Stationery,225
http://statistics.data.gov.uk/id/local-authority/12UE,Huntingdonshire District Council,02/02/2012,97967,627.60,Mhb Services,CR417269,One Leisure St Ives,Gen Building Mtce - Responsive,303
http://statistics.data.gov.uk/id/local-authority/12UE,Huntingdonshire District Council,23/02/2012,99505,80.00,Mr John Ayling,CR453917,One Leisure St Ives,Entertainments Inc Cable Tv,744
http://statistics.data.gov.uk/id/local-authority/12UE,Huntingdonshire District Council,23/02/2012,99516,1564.42,Mr S J Cooper,CR032375,One Leisure St Ives,Catering Materials,559
http://statistics.data.gov.uk/id/local-authority/12UE,Huntingdonshire District Council,02/02/2012,96616,75.00,Ofcom,CR410164,One Leisure St Ives,Licences,730
http://statistics.data.gov.uk/id/local-authority/12UE,Huntingdonshire District Council,02/02/2012,97745,1241.76,Pearce Sound & Lighting Ltd,CR453763,One Leisure St Ives,Materials,550
http://statistics.data.gov.uk/id/local-authority/12UE,Huntingdonshire District Council,23/02/2012,98640,25.07,Phs Group Ltd,CR032018,One Leisure St Ives,Subcontractors,777
http://statistics.data.gov.uk/id/local-authority/12UE,Huntingdonshire District Council,23/02/2012,99329,307.71,Pitney Bowes Finance Plc,CR019747,One Leisure St Ives,Other Office Equipment,209
http://statistics.data.gov.uk/id/local-authority/12UE,Huntingdonshire District Council,23/02/2012,98650,2.76,Plumbing Centre Ltd,CR415401,One Leisure St Ives,Gen Building Mtce - Responsive,303
http://statistics.data.gov.uk/id/local-authority/12UE,Huntingdonshire District Council,23/02/2012,98651,27.25,Plumbing Centre Ltd,CR415401,One Leisure St Ives,Gen Building Mtce - Responsive,303
http://statistics.data.gov.uk/id/local-authority/12UE,Huntingdonshire District Council,23/02/2012,98652,6.65,Plumbing Centre Ltd,CR415401,One Leisure St Ives,Gen Building Mtce - Responsive,303
http://statistics.data.gov.uk/id/local-authority/12UE,Huntingdonshire District Council,16/02/2012,98913,352.51,Roger Wilson Electronics,CR028041,One Leisure St Ives,Gen Building Mtce - Responsive,303
http://statistics.data.gov.uk/id/local-authority/12UE,Huntingdonshire District Council,16/02/2012,98653,60.00,Roger Wilson Electronics,CR028041,One Leisure St Ives,Gen Building Mtce - Responsive,303
http://statistics.data.gov.uk/id/local-authority/12UE,Huntingdonshire District Council,02/02/2012,98004,219.47,Roger Wilson Electronics,CR028041,One Leisure St Ives,Gen Building Mtce - Responsive,303
http://statistics.data.gov.uk/id/local-authority/12UE,Huntingdonshire District Council,16/02/2012,98453,308.40,Semco Signs Ltd,CR083202,One Leisure St Ives,Advertising/Promoting Services,255
http://statistics.data.gov.uk/id/local-authority/12UE,Huntingdonshire District Council,23/02/2012,98638,134.44,Shell Uk Ltd,CR028192,One Leisure St Ives,Diesel,615
http://statistics.data.gov.uk/id/local-authority/12UE,Huntingdonshire District Council,23/02/2012,99504,517.20,Sky Business,CR033259,One Leisure St Ives,Entertainments Inc Cable Tv,744
http://statistics.data.gov.uk/id/local-authority/12UE,Huntingdonshire District Council,09/02/2012,98145,7581.60,Stadia Sports International Ld,CR026169,One Leisure St Ives,Sports Equipment,524
http://statistics.data.gov.uk/id/local-authority/12UE,Huntingdonshire District Council,23/02/2012,99515,287.18,Starlite Roadshow,CR024127,One Leisure St Ives,Entertainments Inc Cable Tv,744
http://statistics.data.gov.uk/id/local-authority/12UE,Huntingdonshire District Council,16/02/2012,98654,350.00,Starlite Roadshow,CR024127,One Leisure St Ives,Entertainments Inc Cable Tv,744
http://statistics.data.gov.uk/id/local-authority/12UE,Huntingdonshire District Council,02/02/2012,97952,1901.94,Starlite Roadshow,CR024127,One Leisure St Ives,Hired Staff,100
http://statistics.data.gov.uk/id/local-authority/12UE,Huntingdonshire District Council,16/02/2012,98985,4218.00,Technogym Uk Ltd,CR033037,One Leisure St Ives,Equipment Purchases,500
http://statistics.data.gov.uk/id/local-authority/12UE,Huntingdonshire District Council,23/02/2012,98982,52.00,Thurlow Nunn Standen Ltd,CR001534,One Leisure St Ives,Vehicle Maintenance,619
http://statistics.data.gov.uk/id/local-authority/12UE,Huntingdonshire District Council,02/02/2012,96548,47.70,Virgin Media Business,CR033120,One Leisure St Ives,Telephone Charges,240
http://statistics.data.gov.uk/id/local-authority/12UE,Huntingdonshire District Council,16/02/2012,97657,92.53,Vodafone Limited,CR029120,One Leisure St Ives,Mobile Telephones & Radios,241
http://statistics.data.gov.uk/id/local-authority/12UE,Huntingdonshire District Council,23/02/2012,99296,922.80,Anglian Water,CR000071,One Leisure St Neots,Water,432
http://statistics.data.gov.uk/id/local-authority/12UE,Huntingdonshire District Council,02/02/2012,97909,53.85,Badgemaster,CR400716,One Leisure St Neots,Equipment Purchases,500
http://statistics.data.gov.uk/id/local-authority/12UE,Huntingdonshire District Council,23/02/2012,98557,2.52,Biffa Waste Services Ltd,CR416469,One Leisure St Neots,Waste Disposal,763
http://statistics.data.gov.uk/id/local-authority/12UE,Huntingdonshire District Council,23/02/2012,98558,144.00,Biffa Waste Services Ltd,CR416469,One Leisure St Neots,Waste Disposal,763
http://statistics.data.gov.uk/id/local-authority/12UE,Huntingdonshire District Council,23/02/2012,98559,24.06,Biffa Waste Services Ltd,CR416469,One Leisure St Neots,Waste Disposal,763
http://statistics.data.gov.uk/id/local-authority/12UE,Huntingdonshire District Council,02/02/2012,96297,255.50,Bump Birth And Beyond Ltd,CR487265,One Leisure St Neots,Instructors/Tutors,720
http://statistics.data.gov.uk/id/local-authority/12UE,Huntingdonshire District Council,09/02/2012,97269,216.00,Chubb Fire Ltd,CR478924,One Leisure St Neots,Equipment Maintenance,511
http://statistics.data.gov.uk/id/local-authority/12UE,Huntingdonshire District Council,09/02/2012,97270,158.49,Chubb Fire Ltd,CR478924,One Leisure St Neots,Equipment Maintenance,511
http://statistics.data.gov.uk/id/local-authority/12UE,Huntingdonshire District Council,16/02/2012,97732,246.00,Clanpress King'S Lynn Ltd,CR413516,One Leisure St Neots,Printing (External),220
http://statistics.data.gov.uk/id/local-authority/12UE,Huntingdonshire District Council,16/02/2012,97664,119.94,Cmuk Visual Safety Ltd,CR405024,One Leisure St Neots,Materials,550
http://statistics.data.gov.uk/id/local-authority/12UE,Huntingdonshire District Council,02/02/2012,96762,115.74,Cmuk Visual Safety Ltd,CR405024,One Leisure St Neots,Materials,550
http://statistics.data.gov.uk/id/local-authority/12UE,Huntingdonshire District Council,23/02/2012,98082,108.00,Coffee Solutions,CR480375,One Leisure St Neots,Catering Materials,559
http://statistics.data.gov.uk/id/local-authority/12UE,Huntingdonshire District Council,09/02/2012,97233,64.35,D J Taylor Anglia Oils,CR406808,One Leisure St Neots,Catering Materials,559
http://statistics.data.gov.uk/id/local-authority/12UE,Huntingdonshire District Council,09/02/2012,97284,1070.81,Decleor Uk Ltd,CR480786,One Leisure St Neots,Materials,550
http://statistics.data.gov.uk/id/local-authority/12UE,Huntingdonshire District Council,09/02/2012,97285,-774.79,Decleor Uk Ltd,CR480786,One Leisure St Neots,Materials,550
http://statistics.data.gov.uk/id/local-authority/12UE,Huntingdonshire District Council,09/02/2012,97283,266.25,Decleor Uk Ltd,CR480786,One Leisure St Neots,Materials For Resale,570
http://statistics.data.gov.uk/id/local-authority/12UE,Huntingdonshire District Council,09/02/2012,97284,333.11,Decleor Uk Ltd,CR480786,One Leisure St Neots,Materials For Resale,570
http://statistics.data.gov.uk/id/local-authority/12UE,Huntingdonshire District Council,02/02/2012,96535,312.00,Environ Uk Limited,CR480369,One Leisure St Neots,Consultants,711
http://statistics.data.gov.uk/id/local-authority/12UE,Huntingdonshire District Council,16/02/2012,98810,5326.18,E-On Energy,CR416430,One Leisure St Neots,Electricity,420
http://statistics.data.gov.uk/id/local-authority/12UE,Huntingdonshire District Council,02/02/2012,96701,424.57,Glaxosmithkline,CR010424,One Leisure St Neots,Vending Materials,560
http://statistics.data.gov.uk/id/local-authority/12UE,Huntingdonshire District Council,16/02/2012,97648,285.59,Glaxosmithkline,CR010424,One Leisure St Neots,Vending Materials,560
http://statistics.data.gov.uk/id/local-authority/12UE,Huntingdonshire District Council,02/02/2012,96703,116.83,Histon Produce Co Ltd,CR033268,One Leisure St Neots,Catering Materials,559
http://statistics.data.gov.uk/id/local-authority/12UE,Huntingdonshire District Council,23/02/2012,98081,106.64,Histon Produce Co Ltd,CR033268,One Leisure St Neots,Catering Materials,559
http://statistics.data.gov.uk/id/local-authority/12UE,Huntingdonshire District Council,02/02/2012,96706,193.88,Hopwells Ltd,CR097542,One Leisure St Neots,Catering Materials,559
http://statistics.data.gov.uk/id/local-authority/12UE,Huntingdonshire District Council,23/02/2012,98085,122.26,Hopwells Ltd,CR097542,One Leisure St Neots,Catering Materials,559
http://statistics.data.gov.uk/id/local-authority/12UE,Huntingdonshire District Council,23/02/2012,98086,161.77,Hopwells Ltd,CR097542,One Leisure St Neots,Catering Materials,559
http://statistics.data.gov.uk/id/local-authority/12UE,Huntingdonshire District Council,09/02/2012,96828,153.84,Hopwells Ltd,CR097542,One Leisure St Neots,Catering Materials,559
http://statistics.data.gov.uk/id/local-authority/12UE,Huntingdonshire District Council,16/02/2012,97646,259.70,Hopwells Ltd,CR097542,One Leisure St Neots,Catering Materials,559
http://statistics.data.gov.uk/id/local-authority/12UE,Huntingdonshire District Council,02/02/2012,96299,164.76,Inflatable Testing & Repairing Services Ltd,CR410226,One Leisure St Neots,Equipment Hire,507
http://statistics.data.gov.uk/id/local-authority/12UE,Huntingdonshire District Council,23/02/2012,98112,19.08,J P Lennard Ltd,CR028595,One Leisure St Neots,Equipment Hire,507
http://statistics.data.gov.uk/id/local-authority/12UE,Huntingdonshire District Council,23/02/2012,98112,327.90,J P Lennard Ltd,CR028595,One Leisure St Neots,Equipment Purchases,500
http://statistics.data.gov.uk/id/local-authority/12UE,Huntingdonshire District Council,23/02/2012,98112,53.76,J P Lennard Ltd,CR028595,One Leisure St Neots,Materials,550
http://statistics.data.gov.uk/id/local-authority/12UE,Huntingdonshire District Council,23/02/2012,98112,78.56,J P Lennard Ltd,CR028595,One Leisure St Neots,Materials For Resale,570
http://statistics.data.gov.uk/id/local-authority/12UE,Huntingdonshire District Council,02/02/2012,96718,8.92,Ken Booth & Co,CR000305,One Leisure St Neots,Cleaning Materials,443
http://statistics.data.gov.uk/id/local-authority/12UE,Huntingdonshire District Council,23/02/2012,98087,11.87,Ken Booth & Co,CR000305,One Leisure St Neots,Equipment Purchases,500
http://statistics.data.gov.uk/id/local-authority/12UE,Huntingdonshire District Council,02/02/2012,96718,198.67,Ken Booth & Co,CR000305,One Leisure St Neots,Materials,550
http://statistics.data.gov.uk/id/local-authority/12UE,Huntingdonshire District Council,23/02/2012,98088,19.49,Ken Booth & Co,CR000305,One Leisure St Neots,Materials,550
http://statistics.data.gov.uk/id/local-authority/12UE,Huntingdonshire District Council,02/02/2012,96327,45.84,King Bros,CR411339,One Leisure St Neots,Bar Provisions,558
http://statistics.data.gov.uk/id/local-authority/12UE,Huntingdonshire District Council,23/02/2012,98089,28.56,King Bros,CR411339,One Leisure St Neots,Bar Provisions,558
http://statistics.data.gov.uk/id/local-authority/12UE,Huntingdonshire District Council,23/02/2012,98090,64.63,King Bros,CR411339,One Leisure St Neots,Bar Provisions,558
http://statistics.data.gov.uk/id/local-authority/12UE,Huntingdonshire District Council,02/02/2012,96702,90.55,King Bros,CR411339,One Leisure St Neots,Catering Materials,559
http://statistics.data.gov.uk/id/local-authority/12UE,Huntingdonshire District Council,02/02/2012,96327,31.67,King Bros,CR411339,One Leisure St Neots,Catering Materials,559
http://statistics.data.gov.uk/id/local-authority/12UE,Huntingdonshire District Council,23/02/2012,98089,138.55,King Bros,CR411339,One Leisure St Neots,Catering Materials,559
http://statistics.data.gov.uk/id/local-authority/12UE,Huntingdonshire District Council,23/02/2012,98090,67.27,King Bros,CR411339,One Leisure St Neots,Catering Materials,559
http://statistics.data.gov.uk/id/local-authority/12UE,Huntingdonshire District Council,02/02/2012,97907,100.00,Manlys Tiling Services,CR480285,One Leisure St Neots,Gen Building Mtce - Responsive,303
http://statistics.data.gov.uk/id/local-authority/12UE,Huntingdonshire District Council,09/02/2012,97290,24.59,Neopost,CR400652,One Leisure St Neots,Stationery,225
http://statistics.data.gov.uk/id/local-authority/12UE,Huntingdonshire District Council,23/02/2012,98555,149.39,Neopost,CR400652,One Leisure St Neots,Stationery,225
http://statistics.data.gov.uk/id/local-authority/12UE,Huntingdonshire District Council,23/02/2012,98113,90.00,Pe19 Advertisers Group,CR413264,One Leisure St Neots,Advertising/Promoting Services,255
http://statistics.data.gov.uk/id/local-authority/12UE,Huntingdonshire District Council,02/02/2012,96766,22.70,Phs Group Ltd,CR032018,One Leisure St Neots,Equipment Hire,507
http://statistics.data.gov.uk/id/local-authority/12UE,Huntingdonshire District Council,23/02/2012,98560,62.89,Phs Group Ltd,CR032018,One Leisure St Neots,Equipment Hire,507
http://statistics.data.gov.uk/id/local-authority/12UE,Huntingdonshire District Council,09/02/2012,97268,53.48,Phs Group Ltd,CR032018,One Leisure St Neots,Waste Disposal,763
http://statistics.data.gov.uk/id/local-authority/12UE,Huntingdonshire District Council,02/02/2012,96765,848.27,Phs Group Ltd,CR032018,One Leisure St Neots,Waste Disposal,763
http://statistics.data.gov.uk/id/local-authority/12UE,Huntingdonshire District Council,23/02/2012,98103,369.95,Phs Group Ltd,CR032018,One Leisure St Neots,Waste Disposal,763
http://statistics.data.gov.uk/id/local-authority/12UE,Huntingdonshire District Council,23/02/2012,98106,147.00,R S Air Conditioning Ltd,CR478470,One Leisure St Neots,Gen Building Mtce - Responsive,303
http://statistics.data.gov.uk/id/local-authority/12UE,Huntingdonshire District Council,16/02/2012,97663,199.12,Roger Wilson Electronics,CR028041,One Leisure St Neots,Gen Building Mtce - Planned,304
http://statistics.data.gov.uk/id/local-authority/12UE,Huntingdonshire District Council,23/02/2012,98104,714.83,Roger Wilson Electronics,CR028041,One Leisure St Neots,Gen Building Mtce - Responsive,303
http://statistics.data.gov.uk/id/local-authority/12UE,Huntingdonshire District Council,23/02/2012,98553,72.00,Semco Signs Ltd,CR083202,One Leisure St Neots,Materials,550
http://statistics.data.gov.uk/id/local-authority/12UE,Huntingdonshire District Council,02/02/2012,96705,195.50,Snackline Direct Ltd,CR478090,One Leisure St Neots,Bar Provisions,558
http://statistics.data.gov.uk/id/local-authority/12UE,Huntingdonshire District Council,23/02/2012,98083,163.08,Snackline Direct Ltd,CR478090,One Leisure St Neots,Bar Provisions,558
http://statistics.data.gov.uk/id/local-authority/12UE,Huntingdonshire District Council,23/02/2012,98084,115.97,Snackline Direct Ltd,CR478090,One Leisure St Neots,Bar Provisions,558
http://statistics.data.gov.uk/id/local-authority/12UE,Huntingdonshire District Council,09/02/2012,97215,256.58,Snackline Direct Ltd,CR478090,One Leisure St Neots,Bar Provisions,558
http://statistics.data.gov.uk/id/local-authority/12UE,Huntingdonshire District Council,09/02/2012,96827,168.70,Snackline Direct Ltd,CR478090,One Leisure St Neots,Bar Provisions,558
http://statistics.data.gov.uk/id/local-authority/12UE,Huntingdonshire District Council,23/02/2012,98084,6.95,Snackline Direct Ltd,CR478090,One Leisure St Neots,Catering Materials,559
http://statistics.data.gov.uk/id/local-authority/12UE,Huntingdonshire District Council,09/02/2012,97215,7.98,Snackline Direct Ltd,CR478090,One Leisure St Neots,Catering Materials,559
http://statistics.data.gov.uk/id/local-authority/12UE,Huntingdonshire District Council,02/02/2012,96705,27.40,Snackline Direct Ltd,CR478090,One Leisure St Neots,Confectionery,572
http://statistics.data.gov.uk/id/local-authority/12UE,Huntingdonshire District Council,23/02/2012,98084,14.59,Snackline Direct Ltd,CR478090,One Leisure St Neots,Confectionery,572
http://statistics.data.gov.uk/id/local-authority/12UE,Huntingdonshire District Council,09/02/2012,97215,66.20,Snackline Direct Ltd,CR478090,One Leisure St Neots,Confectionery,572
http://statistics.data.gov.uk/id/local-authority/12UE,Huntingdonshire District Council,09/02/2012,96827,29.74,Snackline Direct Ltd,CR478090,One Leisure St Neots,Confectionery,572
http://statistics.data.gov.uk/id/local-authority/12UE,Huntingdonshire District Council,09/02/2012,98544,801.10,Snackline Direct Ltd,CR478090,One Leisure St Neots,Vending Materials,560
http://statistics.data.gov.uk/id/local-authority/12UE,Huntingdonshire District Council,09/02/2012,98545,815.44,Snackline Direct Ltd,CR478090,One Leisure St Neots,Vending Materials,560
http://statistics.data.gov.uk/id/local-authority/12UE,Huntingdonshire District Council,23/02/2012,98091,1508.81,Snackline Direct Ltd,CR478090,One Leisure St Neots,Vending Materials,560
http://statistics.data.gov.uk/id/local-authority/12UE,Huntingdonshire District Council,16/02/2012,97657,288.10,Vodafone Limited,CR029120,One Leisure St Neots,Mobile Telephones & Radios,241
http://statistics.data.gov.uk/id/local-authority/12UE,Huntingdonshire District Council,09/02/2012,98414,32.88,Aos,CR406269,Operations Mgt Units,Materials,550
http://statistics.data.gov.uk/id/local-authority/12UE,Huntingdonshire District Council,09/02/2012,98416,73.20,Aos,CR406269,Operations Mgt Units,Materials,550
http://statistics.data.gov.uk/id/local-authority/12UE,Huntingdonshire District Council,16/02/2012,97506,49.44,Lyreco Uk Ltd,CR400700,Operations Mgt Units,Stationery,225
http://statistics.data.gov.uk/id/local-authority/12UE,Huntingdonshire District Council,16/02/2012,97599,11.78,Marshall Motor Group,CR009641,Operations Mgt Units,Vehicle Parts,625
http://statistics.data.gov.uk/id/local-authority/12UE,Huntingdonshire District Council,23/02/2012,98535,14.30,Parker Merchanting,CR415428,Operations Mgt Units,Protective Clothing & Uniforms,163
http://statistics.data.gov.uk/id/local-authority/12UE,Huntingdonshire District Council,02/02/2012,97259,181.73,Parker Merchanting Ltd,CR40034,Operations Mgt Units,Cleaning Materials,443
http://statistics.data.gov.uk/id/local-authority/12UE,Huntingdonshire District Council,09/02/2012,97289,157.00,Snacktime Vmi,CR482479,Operations Mgt Units,Service Charges,412
http://statistics.data.gov.uk/id/local-authority/12UE,Huntingdonshire District Council,09/02/2012,97299,278.24,Snacktime Vmi,CR482479,Operations Mgt Units,Service Charges,412
http://statistics.data.gov.uk/id/local-authority/12UE,Huntingdonshire District Council,09/02/2012,97301,-412.93,Snacktime Vmi,CR482479,Operations Mgt Units,Service Charges,412
http://statistics.data.gov.uk/id/local-authority/12UE,Huntingdonshire District Council,16/02/2012,98174,42.28,Stamps Direct,CR410599,Operations Mgt Units,Stationery,225
http://statistics.data.gov.uk/id/local-authority/12UE,Huntingdonshire District Council,16/02/2012,97657,1496.98,Vodafone Limited,CR029120,Operations Mgt Units,Mobile Telephones & Radios,241
http://statistics.data.gov.uk/id/local-authority/12UE,Huntingdonshire District Council,02/02/2012,97545,1500.00,Zurich Municipal,CR003638,Operations Mgt Units,Insurance Excess,797
http://statistics.data.gov.uk/id/local-authority/12UE,Huntingdonshire District Council,16/02/2012,97657,73.13,Vodafone Limited,CR029120,Other Operating Inc & Expend,Mobile Telephones & Radios,241
http://statistics.data.gov.uk/id/local-authority/12UE,Huntingdonshire District Council,16/02/2012,98431,787.57,Barclay & Mathieson Ltd,CR478330,Parks & Open Spaces,Materials,550
http://statistics.data.gov.uk/id/local-authority/12UE,Huntingdonshire District Council,23/02/2012,98052,3600.00,Chesmetalwork,CR453817,Parks & Open Spaces,Playground Equipment,360
http://statistics.data.gov.uk/id/local-authority/12UE,Huntingdonshire District Council,23/02/2012,99493,1281.60,Lattenbury Services,CR406847,Parks & Open Spaces,Sitework,359
http://statistics.data.gov.uk/id/local-authority/12UE,Huntingdonshire District Council,09/02/2012,97213,378.00,St Neots Fencing Company,CR478488,Parks & Open Spaces,Playground Equipment,360
http://statistics.data.gov.uk/id/local-authority/12UE,Huntingdonshire District Council,09/02/2012,98466,1136.40,St Neots Fencing Company,CR478488,Parks & Open Spaces,Playground Equipment,360
http://statistics.data.gov.uk/id/local-authority/12UE,Huntingdonshire District Council,09/02/2012,97323,2988.00,Just Marketings,CR481191,Parks Equipment Capital,Sitework,359
http://statistics.data.gov.uk/id/local-authority/12UE,Huntingdonshire District Council,02/02/2012,97916,6900.00,Apple Sounds Limited,CR480671,Pathfinder House Site,Gen Building Mtce - Responsive,303
http://statistics.data.gov.uk/id/local-authority/12UE,Huntingdonshire District Council,16/02/2012,97636,135.00,B. S. Graves Electrical Ltd,CR000363,Pathfinder House Site,Gen Building Mtce - Responsive,303
http://statistics.data.gov.uk/id/local-authority/12UE,Huntingdonshire District Council,23/02/2012,97937,350.16,B. S. Graves Electrical Ltd,CR000363,Pathfinder House Site,Gen Building Mtce - Responsive,303
http://statistics.data.gov.uk/id/local-authority/12UE,Huntingdonshire District Council,09/02/2012,98403,2146.93,Ecocleen Services Limited,CR406985,Pathfinder House Site,Building Cleaning Internal,440
http://statistics.data.gov.uk/id/local-authority/12UE,Huntingdonshire District Council,16/02/2012,98974,10162.85,E-On Energy,CR416430,Pathfinder House Site,Electricity,420
http://statistics.data.gov.uk/id/local-authority/12UE,Huntingdonshire District Council,14/02/2012,98841,4456.19,E-On Energy,CR416430,Pathfinder House Site,Gas,421
http://statistics.data.gov.uk/id/local-authority/12UE,Huntingdonshire District Council,14/02/2012,98929,-4456.19,E-On Energy,CR416430,Pathfinder House Site,Gas,421
http://statistics.data.gov.uk/id/local-authority/12UE,Huntingdonshire District Council,16/02/2012,97518,159.41,Howsafe Ltd,CR000409,Pathfinder House Site,Protective Clothing & Uniforms,163
http://statistics.data.gov.uk/id/local-authority/12UE,Huntingdonshire District Council,16/02/2012,97493,3705.00,Hygiene Solutions,CR477443,Pathfinder House Site,Gen Building Mtce - Responsive,303
http://statistics.data.gov.uk/id/local-authority/12UE,Huntingdonshire District Council,16/02/2012,98389,2400.00,Ingersoll Rand Security Technologies,CR480827,Pathfinder House Site,Plant & Equipment Maintenance,380
http://statistics.data.gov.uk/id/local-authority/12UE,Huntingdonshire District Council,23/02/2012,98501,620.16,Maskearaid Ind Supplies,CR033423,Pathfinder House Site,Cleaning Materials,443
http://statistics.data.gov.uk/id/local-authority/12UE,Huntingdonshire District Council,23/02/2012,98502,43.20,Maskearaid Ind Supplies,CR033423,Pathfinder House Site,Cleaning Materials,443
http://statistics.data.gov.uk/id/local-authority/12UE,Huntingdonshire District Council,23/02/2012,98503,54.45,Maskearaid Ind Supplies,CR033423,Pathfinder House Site,Cleaning Materials,443
http://statistics.data.gov.uk/id/local-authority/12UE,Huntingdonshire District Council,02/02/2012,97135,661.54,Maskearaid Ind Supplies,CR033423,Pathfinder House Site,Gen Building Mtce - Responsive,303
http://statistics.data.gov.uk/id/local-authority/12UE,Huntingdonshire District Council,02/02/2012,96498,1224.00,Nemco Utilities Ltd,CR409319,Pathfinder House Site,Gen Building Mtce - Planned,304
http://statistics.data.gov.uk/id/local-authority/12UE,Huntingdonshire District Council,16/02/2012,97490,220.50,P A Collacott & Company,CR482300,Pathfinder House Site,Gen Building Mtce - Responsive,303
http://statistics.data.gov.uk/id/local-authority/12UE,Huntingdonshire District Council,02/02/2012,96770,291.67,Saltream  Ltd,CR411219,Pathfinder House Site,Gen Building Mtce - Responsive,303
http://statistics.data.gov.uk/id/local-authority/12UE,Huntingdonshire District Council,16/02/2012,97657,25.99,Vodafone Limited,CR029120,Pathfinder House Site,Mobile Telephones & Radios,241
http://statistics.data.gov.uk/id/local-authority/12UE,Huntingdonshire District Council,02/02/2012,97943,376.80,Zip Heaters Uk Ltd,CR478275,Pathfinder House Site,Gen Building Mtce - Responsive,303
http://statistics.data.gov.uk/id/local-authority/12UE,Huntingdonshire District Council,16/02/2012,98958,81.76,Anglian Water,CR000071,Pavillions,Sewerage,433
http://statistics.data.gov.uk/id/local-authority/12UE,Huntingdonshire District Council,16/02/2012,98958,58.37,Anglian Water,CR000071,Pavillions,Water,432
http://statistics.data.gov.uk/id/local-authority/12UE,Huntingdonshire District Council,16/02/2012,97926,480.00,G Ferrara Ltd,CR478949,Pavillions,Gen Building Mtce - Responsive,303
http://statistics.data.gov.uk/id/local-authority/12UE,Huntingdonshire District Council,09/02/2012,97267,19.99,R & B Shoe Repairs,CR400515,Pavillions,Equipment Purchases,500
http://statistics.data.gov.uk/id/local-authority/12UE,Huntingdonshire District Council,16/02/2012,98813,715.60,Gordon Low,CR481075,Paxton Pits,Materials,550
http://statistics.data.gov.uk/id/local-authority/12UE,Huntingdonshire District Council,16/02/2012,97657,53.59,Vodafone Limited,CR029120,Paxton Pits,Mobile Telephones & Radios,241
http://statistics.data.gov.uk/id/local-authority/12UE,Huntingdonshire District Council,02/02/2012,97044,216.00,Acfo Ltd,CR409116,Payroll,Professional Subscriptions,755
http://statistics.data.gov.uk/id/local-authority/12UE,Huntingdonshire District Council,23/02/2012,99212,8920.13,Cambridgeshire County Council,CR006678,Pensions,Pension Early Retirements,151
http://statistics.data.gov.uk/id/local-authority/12UE,Huntingdonshire District Council,16/02/2012,97498,79.33,Lyreco Uk Ltd,CR400700,People Performance&Partner Mu,Stationery,225
http://statistics.data.gov.uk/id/local-authority/12UE,Huntingdonshire District Council,23/02/2012,99229,3480.00,Penna Plc,CR482598,People Performance&Partner Mu,Consultants,711
http://statistics.data.gov.uk/id/local-authority/12UE,Huntingdonshire District Council,09/02/2012,97497,14520.00,Penna Plc,CR482598,People Performance&Partner Mu,Consultants,711
http://statistics.data.gov.uk/id/local-authority/12UE,Huntingdonshire District Council,23/02/2012,97496,7260.00,Penna Plc,CR482598,People Performance&Partner Mu,Consultants,711
http://statistics.data.gov.uk/id/local-authority/12UE,Huntingdonshire District Council,16/02/2012,97657,382.91,Vodafone Limited,CR029120,People Performance&Partner Mu,Mobile Telephones & Radios,241
http://statistics.data.gov.uk/id/local-authority/12UE,Huntingdonshire District Council,16/02/2012,97657,44.30,Vodafone Limited,CR029120,Pest Control,Mobile Telephones & Radios,241
http://statistics.data.gov.uk/id/local-authority/12UE,Huntingdonshire District Council,23/02/2012,98607,1422.00,Haymarket Business Publications Ltd,CR417029,Planning M U'S,Corporate Subscriptions,754
http://statistics.data.gov.uk/id/local-authority/12UE,Huntingdonshire District Council,16/02/2012,97657,771.39,Vodafone Limited,CR029120,Planning M U'S,Mobile Telephones & Radios,241
http://statistics.data.gov.uk/id/local-authority/12UE,Huntingdonshire District Council,16/02/2012,97927,276.12,Omega Engineering Ltd,CR453825,Private Sector Housing,Equipment Purchases,500
http://statistics.data.gov.uk/id/local-authority/12UE,Huntingdonshire District Council,02/02/2012,97914,2723.47,Dms Home Improvements & Electrical,CR479202,Property Development And Mgt,Gen Building Mtce - Responsive,303
http://statistics.data.gov.uk/id/local-authority/12UE,Huntingdonshire District Council,09/02/2012,98198,111.58,Ecocleen Services Limited,CR406985,Property Development And Mgt,Building Cleaning Internal,440
http://statistics.data.gov.uk/id/local-authority/12UE,Huntingdonshire District Council,09/02/2012,97061,180.00,G Ferrara Ltd,CR478949,Property Development And Mgt,Sitework,359
http://statistics.data.gov.uk/id/local-authority/12UE,Huntingdonshire District Council,02/02/2012,97106,3522.02,Hedley Solutions Ltd,CR026816,Property Development And Mgt,Gen Building Mtce - Responsive,303
http://statistics.data.gov.uk/id/local-authority/12UE,Huntingdonshire District Council,09/02/2012,96870,540.00,J Breheny Contractors Ltd,CR000314,Property Development And Mgt,Sitework,359
http://statistics.data.gov.uk/id/local-authority/12UE,Huntingdonshire District Council,02/02/2012,97314,373.00,M Hopkins,CR453842,Property Development And Mgt,Gen Building Mtce - Responsive,303
http://statistics.data.gov.uk/id/local-authority/12UE,Huntingdonshire District Council,16/02/2012,97669,8218.80,Rocket Software Uk Ltd,CR411171,Public Accountability,Software,206
http://statistics.data.gov.uk/id/local-authority/12UE,Huntingdonshire District Council,02/02/2012,97654,3691.80,Shared Services Architects,CR481087,Public Accountability,Consultation And Surveys,770
http://statistics.data.gov.uk/id/local-authority/12UE,Huntingdonshire District Council,16/02/2012,98979,115.80,Anglian Water,CR000071,Public Conveniences,Sewerage,433
http://statistics.data.gov.uk/id/local-authority/12UE,Huntingdonshire District Council,16/02/2012,98979,76.43,Anglian Water,CR000071,Public Conveniences,Water,432
http://statistics.data.gov.uk/id/local-authority/12UE,Huntingdonshire District Council,16/02/2012,98999,195.00,Dms Home Improvements & Electrical,CR479202,Public Conveniences,Gen Building Mtce - Responsive,303
http://statistics.data.gov.uk/id/local-authority/12UE,Huntingdonshire District Council,09/02/2012,98197,1027.00,Ecocleen Services Limited,CR406985,Public Conveniences,Building Cleaning Internal,440
http://statistics.data.gov.uk/id/local-authority/12UE,Huntingdonshire District Council,02/02/2012,97095,15.60,Virgin Media Business,CR033120,Public Conveniences,I T Line Rental,248
http://statistics.data.gov.uk/id/local-authority/12UE,Huntingdonshire District Council,02/02/2012,96575,74.30,A C Commercials,CR000141,Recycling,Vehicle Parts,625
http://statistics.data.gov.uk/id/local-authority/12UE,Huntingdonshire District Council,02/02/2012,96666,1079.81,Dennis Eagle Ltd,CR000200,Recycling,Vehicle Parts,625
http://statistics.data.gov.uk/id/local-authority/12UE,Huntingdonshire District Council,02/02/2012,96674,564.29,Dennis Eagle Ltd,CR000200,Recycling,Vehicle Parts,625
http://statistics.data.gov.uk/id/local-authority/12UE,Huntingdonshire District Council,02/02/2012,96675,51.84,Dennis Eagle Ltd,CR000200,Recycling,Vehicle Parts,625
http://statistics.data.gov.uk/id/local-authority/12UE,Huntingdonshire District Council,23/02/2012,98393,231.60,Gilden Training,CR481057,Recycling,Training - Operational,131
http://statistics.data.gov.uk/id/local-authority/12UE,Huntingdonshire District Council,23/02/2012,98396,231.60,Gilden Training,CR481057,Recycling,Training - Operational,131
http://statistics.data.gov.uk/id/local-authority/12UE,Huntingdonshire District Council,16/02/2012,97601,624.12,M & N Vehicle Services,CR480661,Recycling,Vehicle Maintenance,619
http://statistics.data.gov.uk/id/local-authority/12UE,Huntingdonshire District Council,23/02/2012,98537,2555.64,Staffline Group,CR416827,Recycling,Hired Staff,100
http://statistics.data.gov.uk/id/local-authority/12UE,Huntingdonshire District Council,23/02/2012,98494,90.00,Terberg Matec Uk Ltd,CR402183,Recycling,Vehicle Parts,625
http://statistics.data.gov.uk/id/local-authority/12UE,Huntingdonshire District Council,02/02/2012,98149,3327.95,Viridor Waste Management Ltd,CR482408,Recycling,Recycling Collections,747
http://statistics.data.gov.uk/id/local-authority/12UE,Huntingdonshire District Council,23/02/2012,98148,2905.62,Viridor Waste Management Ltd,CR482408,Recycling,Recycling Collections,747
http://statistics.data.gov.uk/id/local-authority/12UE,Huntingdonshire District Council,02/02/2012,97910,3594.00,Edwards & Blake,CR479434,Restaurant,Equipment Purchases,500
http://statistics.data.gov.uk/id/local-authority/12UE,Huntingdonshire District Council,23/02/2012,98943,125.96,Edwards & Blake,CR479434,Restaurant,Equipment Purchases,500
http://statistics.data.gov.uk/id/local-authority/12UE,Huntingdonshire District Council,23/02/2012,99305,131.82,Amalgamated Computer Supplies,CR480830,Revenue Services Mus,Stationery,225
http://statistics.data.gov.uk/id/local-authority/12UE,Huntingdonshire District Council,23/02/2012,98370,84.17,Aos,CR406269,Revenue Services Mus,Stationery,225
http://statistics.data.gov.uk/id/local-authority/12UE,Huntingdonshire District Council,02/02/2012,97038,680.40,Hbinfo Ltd,CR479354,Revenue Services Mus,Conferences,137
http://statistics.data.gov.uk/id/local-authority/12UE,Huntingdonshire District Council,02/02/2012,96652,3402.00,L A Directories Ltd,CR479153,Revenue Services Mus,Training - Other,136
http://statistics.data.gov.uk/id/local-authority/12UE,Huntingdonshire District Council,16/02/2012,98378,2109.49,T N T Post Midlands Ltd,CR479965,Revenue Services Mus,Postage,231
http://statistics.data.gov.uk/id/local-authority/12UE,Huntingdonshire District Council,02/02/2012,97488,466.44,T N T Post Midlands Ltd,CR479965,Revenue Services Mus,Postage,231
http://statistics.data.gov.uk/id/local-authority/12UE,Huntingdonshire District Council,23/02/2012,98380,506.59,T N T Post Midlands Ltd,CR479965,Revenue Services Mus,Postage,231
http://statistics.data.gov.uk/id/local-authority/12UE,Huntingdonshire District Council,16/02/2012,97714,1081.08,Venn Group Recruitment,CR415403,Revenue Services Mus,Hired Staff,100
http://statistics.data.gov.uk/id/local-authority/12UE,Huntingdonshire District Council,09/02/2012,97713,1007.38,Venn Group Recruitment,CR415403,Revenue Services Mus,Hired Staff,100
http://statistics.data.gov.uk/id/local-authority/12UE,Huntingdonshire District Council,16/02/2012,97657,481.11,Vodafone Limited,CR029120,Revenue Services Mus,Mobile Telephones & Radios,241
http://statistics.data.gov.uk/id/local-authority/12UE,Huntingdonshire District Council,09/02/2012,98415,4200.00,Khipu Networks Ltd,CR482348,Software Capital,Consultants,711
http://statistics.data.gov.uk/id/local-authority/12UE,Huntingdonshire District Council,09/02/2012,98415,16855.21,Khipu Networks Ltd,CR482348,Software Capital,Equipment Maintenance,511
http://statistics.data.gov.uk/id/local-authority/12UE,Huntingdonshire District Council,23/02/2012,97980,4755.96,Khipu Networks Ltd,CR482348,Software Capital,Network Hardware,205
http://statistics.data.gov.uk/id/local-authority/12UE,Huntingdonshire District Council,09/02/2012,98415,39672.78,Khipu Networks Ltd,CR482348,Software Capital,Other I T Hardware,203
http://statistics.data.gov.uk/id/local-authority/12UE,Huntingdonshire District Council,09/02/2012,98406,42618.00,Northgate Information Solutions Uk Ltd,CR028925,Software Capital,Software,206
http://statistics.data.gov.uk/id/local-authority/12UE,Huntingdonshire District Council,16/02/2012,97657,179.39,Vodafone Limited,CR029120,Software Capital,Mobile Telephones & Radios,241
http://statistics.data.gov.uk/id/local-authority/12UE,Huntingdonshire District Council,09/02/2012,97325,164.04,Cummins Uk,CR480395,Street Cleaning,Vehicle Parts,625
http://statistics.data.gov.uk/id/local-authority/12UE,Huntingdonshire District Council,23/02/2012,98436,343.20,D & H Sign & Display Services,CR030353,Street Cleaning,Signs Erecting & Removal,361
http://statistics.data.gov.uk/id/local-authority/12UE,Huntingdonshire District Council,09/02/2012,97580,178.20,Frank Ratcliffe & Son,CR007546,Street Cleaning,Vehicle Maintenance,619
http://statistics.data.gov.uk/id/local-authority/12UE,Huntingdonshire District Council,23/02/2012,98853,178.20,Frank Ratcliffe & Son,CR007546,Street Cleaning,Vehicle Parts,625
http://statistics.data.gov.uk/id/local-authority/12UE,Huntingdonshire District Council,16/02/2012,98014,408.00,Ians Tyre And Exhaust Centre,CR405836,Street Cleaning,Tyres,630
http://statistics.data.gov.uk/id/local-authority/12UE,Huntingdonshire District Council,16/02/2012,98581,255.00,Johnston Engineering Ltd,CR029831,Street Cleaning,Vehicle Licence,609
http://statistics.data.gov.uk/id/local-authority/12UE,Huntingdonshire District Council,23/02/2012,98588,220.00,Johnston Engineering Ltd,CR029831,Street Cleaning,Vehicle Licence,609
http://statistics.data.gov.uk/id/local-authority/12UE,Huntingdonshire District Council,23/02/2012,98433,179.35,Johnston Engineering Ltd,CR029831,Street Cleaning,Vehicle Parts,625
http://statistics.data.gov.uk/id/local-authority/12UE,Huntingdonshire District Council,23/02/2012,98434,389.53,Johnston Engineering Ltd,CR029831,Street Cleaning,Vehicle Parts,625
http://statistics.data.gov.uk/id/local-authority/12UE,Huntingdonshire District Council,23/02/2012,98500,1648.66,M & N Vehicle Services,CR480661,Street Cleaning,Vehicle Maintenance,619
http://statistics.data.gov.uk/id/local-authority/12UE,Huntingdonshire District Council,09/02/2012,97232,168.00,Marshall Motor Group,CR009641,Street Cleaning,Vehicle Maintenance,619
http://statistics.data.gov.uk/id/local-authority/12UE,Huntingdonshire District Council,09/02/2012,97234,472.38,Marshall Motor Group,CR009641,Street Cleaning,Vehicle Maintenance,619
http://statistics.data.gov.uk/id/local-authority/12UE,Huntingdonshire District Council,02/02/2012,96740,54.59,Marshall Motor Group,CR009641,Street Cleaning,Vehicle Parts,625
http://statistics.data.gov.uk/id/local-authority/12UE,Huntingdonshire District Council,23/02/2012,98181,26.05,Marshall Motor Group,CR009641,Street Cleaning,Vehicle Parts,625
http://statistics.data.gov.uk/id/local-authority/12UE,Huntingdonshire District Council,02/02/2012,97612,540.00,Meteora Ltd,CR417248,Street Cleaning,Materials,550
http://statistics.data.gov.uk/id/local-authority/12UE,Huntingdonshire District Council,16/02/2012,98192,37.25,Parker Merchanting,CR415428,Street Cleaning,Protective Clothing & Uniforms,163
http://statistics.data.gov.uk/id/local-authority/12UE,Huntingdonshire District Council,23/02/2012,98540,525.25,Staffline Group,CR416827,Street Cleaning,Hired Staff,100
http://statistics.data.gov.uk/id/local-authority/12UE,Huntingdonshire District Council,09/02/2012,98162,1050.50,Staffline Group,CR416827,Street Cleaning,Hired Staff,100
http://statistics.data.gov.uk/id/local-authority/12UE,Huntingdonshire District Council,02/02/2012,98163,1256.36,Staffline Group,CR416827,Street Cleaning,Hired Staff,100
http://statistics.data.gov.uk/id/local-authority/12UE,Huntingdonshire District Council,23/02/2012,98164,525.25,Staffline Group,CR416827,Street Cleaning,Hired Staff,100
http://statistics.data.gov.uk/id/local-authority/12UE,Huntingdonshire District Council,16/02/2012,97657,7.20,Vodafone Limited,CR029120,Street Naming,Mobile Telephones & Radios,241
http://statistics.data.gov.uk/id/local-authority/12UE,Huntingdonshire District Council,02/02/2012,96838,1662.96,Cambridgeshire County Council,CR006678,Trade Waste,Waste Disposal,763
http://statistics.data.gov.uk/id/local-authority/12UE,Huntingdonshire District Council,23/02/2012,528857,545000.00,Cambridgeshire County Council,CR006678,Transportation Capital,Building Construction,300
http://statistics.data.gov.uk/id/local-authority/12UE,Huntingdonshire District Council,16/02/2012,97657,9.35,Vodafone Limited,CR029120,Transportation Mgt,Mobile Telephones & Radios,241
http://statistics.data.gov.uk/id/local-authority/12UE,Huntingdonshire District Council,02/02/2012,96664,90.00,Crowders Nurseries,CR411361,Trees,Delivery Charges,232
http://statistics.data.gov.uk/id/local-authority/12UE,Huntingdonshire District Council,09/02/2012,97516,90.00,Crowders Nurseries,CR411361,Trees,Delivery Charges,232
http://statistics.data.gov.uk/id/local-authority/12UE,Huntingdonshire District Council,23/02/2012,98854,66.00,Crowders Nurseries,CR411361,Trees,Delivery Charges,232
http://statistics.data.gov.uk/id/local-authority/12UE,Huntingdonshire District Council,02/02/2012,96664,183.95,Crowders Nurseries,CR411361,Trees,Trees/Shrubs,555
http://statistics.data.gov.uk/id/local-authority/12UE,Huntingdonshire District Council,09/02/2012,97516,3176.40,Crowders Nurseries,CR411361,Trees,Trees/Shrubs,555
http://statistics.data.gov.uk/id/local-authority/12UE,Huntingdonshire District Council,23/02/2012,98852,33.60,Crowders Nurseries,CR411361,Trees,Trees/Shrubs,555
http://statistics.data.gov.uk/id/local-authority/12UE,Huntingdonshire District Council,23/02/2012,98854,550.80,Crowders Nurseries,CR411361,Trees,Trees/Shrubs,555
http://statistics.data.gov.uk/id/local-authority/12UE,Huntingdonshire District Council,09/02/2012,97711,40.00,Forest Research,CR019639,Trees,Consultants,711
http://statistics.data.gov.uk/id/local-authority/12UE,Huntingdonshire District Council,16/02/2012,98581,145136.40,Johnston Engineering Ltd,CR029831,Vehicles & Plant Capital,Vehicles Purchased,600
http://statistics.data.gov.uk/id/local-authority/12UE,Huntingdonshire District Council,23/02/2012,98588,89292.00,Johnston Engineering Ltd,CR029831,Vehicles & Plant Capital,Vehicles Purchased,600
http://statistics.data.gov.uk/id/local-authority/12UE,Huntingdonshire District Council,02/02/2012,98062,39.60,Language Connect,CR482329,Waiting List,Translation Services,766
http://statistics.data.gov.uk/id/local-authority/12UE,Huntingdonshire District Council,16/02/2012,97635,828.00,Sps Pumps & Engineering Ltd,CR401392,Watercourses,Plant & Equipment Maintenance,380
